Workbook

Sheet nuRBDWS
A1: Randomized Block Design (ANOVA: Two-Factor Without Replication)
A3: SUMMARY | B3: Count | C3: Sum | D3: Average | E3: Variance
A17: ANOVA
A18: Source of Variation | B18: SS | C18: df | D18: MS | E18: F | F18: P-value | G18: F crit
A19: Rows | C19: =COUNTA(#REF!)-2 -> -1 | D19: =B19/C19 -> 0 | E19: =D19/D$21 ->  | F19: =_xlfn.F.DIST.RT(E19,C19,C$21) ->  | G19: =_xlfn.F.INV.RT(G$24,C19,C$21) -> 
A20: Columns | C20: =COUNTA(#REF!)-2 -> -1 | D20: =B20/C20 -> 0 | E20: =D20/D$21 ->  | F20: =_xlfn.F.DIST.RT(E20,C20,C$21) ->  | G20: =_xlfn.F.INV.RT(G$24,C20,C$21) -> 
A21: Error | B21: =B23-B19-B20 -> 0 | C21: =C19*C20 -> 1 | D21: =B21/C21 -> 0
A23: Total | C23: =SUM(C19:C21) -> -1
E24: Level of significance | G24: 0.05

Sheet RBDWS
A1: Randomized Block Design (ANOVA: Two-Factor Without Replication)
A3: SUMMARY | B3: Count | C3: Sum | D3: Average | E3: Variance
A17: ANOVA
A18: Source of Variation | B18: SS | C18: df | D18: MS | E18: F | F18: P-value | G18: F crit
A19: Rows | C19: =COUNTA(#REF!)-2 -> -1 | D19: =B19/C19 -> 0 | E19: =D19/D$21 ->  | F19: =FDIST(E19,C19,C$21) ->  | G19: =FINV(G$24,C19,C$21) -> 
A20: Columns | C20: =COUNTA(#REF!)-2 -> -1 | D20: =B20/C20 -> 0 | E20: =D20/D$21 ->  | F20: =FDIST(E20,C20,C$21) ->  | G20: =FINV(G$24,C20,C$21) -> 
A21: Error | B21: =B23-B19-B20 -> 0 | C21: =C19*C20 -> 1 | D21: =B21/C21 -> 0
A23: Total | C23: =SUM(C19:C21) -> -1
E24: Level of significance | G24: 0.05

Sheet LRWS
A1: Logistic Regression | G1: Y
A3: Predictor | B3: Coefficients | C3: SE Coef | D3: Z | E3: p-Value
A4: Intercept | D4: -1 | E4: =2*(1-NORMSDIST(ABS(D4))) -> 0.3173105079

Sheet DescSummaryWS
A1: Measures of Central Tendency, Variation, and Shape
B3: Variable 1
A4: Mean | B4: =AVERAGE(E:E) -> 
A5: Median | B5: =MEDIAN(E:E) -> 
A6: Mode | B6: =MODE(E:E) -> 
A7: Minimum | B7: =MIN(E:E) -> 0
A8: Maximum | B8: =MAX(E:E) -> 0
A9: Range | B9: =B8 - B7 -> 0
A10: Variance | B10: =VAR(E:E) -> 
A11: Standard Deviation | B11: =STDEV(E:E) -> 
A12: Coeff. of Variation | B12: =B11/B4 -> 
A13: Skewness | B13: =SKEW(E:E) -> 
A14: Kurtosis | B14: =KURT(E:E) -> 
A15: Count | B15: =COUNT(E:E) -> 0
A16: Standard Error | B16: =B11/SQRT(B15) -> 

Sheet ATFWORWS
A1: ANOVA: Two-Factor Without Replication
A3: SUMMARY | B3: Count | C3: Sum | D3: Average | E3: Variance
A4: Rater 1 | B4: 4 | C4: 287 | D4: 71.75 | E4: 76.25
A5: Rater 2 | B5: 4 | C5: 316 | D5: 79 | E5: 36.66666667
A6: Rater 3 | B6: 4 | C6: 313 | D6: 78.25 | E6: 90.91666667
A7: Rater 4 | B7: 4 | C7: 315 | D7: 78.75 | E7: 184.9166667
A8: Rater 5 | B8: 4 | C8: 326 | D8: 81.5 | E8: 121
A9: Rater 6 | B9: 4 | C9: 330 | D9: 82.5 | E9: 161
A11: Restaurant A | B11: 6 | C11: 465 | D11: 77.5 | E11: 21.5
A12: Restaurant B | B12: 6 | C12: 400 | D12: 66.66666667 | E12: 23.46666667
A13: Restaurant C | B13: 6 | C13: 546 | D13: 91 | E13: 33.2
A14: Restaurant D | B14: 6 | C14: 476 | D14: 79.33333333 | E14: 23.46666667
A17: ANOVA
A18: Source of Variation | B18: SS | C18: df | D18: MS | E18: F | F18: P-value | G18: F crit
A19: Rows | D19: =B19/C19 ->  | E19: =D19/D$21 ->  | F19: =FDIST(E19,C19,C$21) ->  | G19: =FINV(G$24,C19,C$21) -> 
A20: Columns | D20: =B20/C20 ->  | E20: =D20/D$21 ->  | F20: =FDIST(E20,C20,C$21) ->  | G20: =FINV(G$24,C20,C$21) -> 
A21: Error | B21: =B23-B19-B20 -> 0 | C21: =C19*C20 -> 0 | D21: =B21/C21 -> 
A23: Total | C23: =SUM(C19:C21) -> 0
D24: Level of significance | G24: 0.05

Sheet MRWS
A1: Multiple Regression | K1: Calculations
K2: b2, b1, b0 intercepts
A3: Regression Statistics | K3: b2, b1, b0 Standard Error
A4: Multiple R | B4: =SQRT(C12/C14) ->  | K4: R Square, Standard Error
A5: R Square | B5: =L4 -> 0 | K5: F, Residual df
A6: Adjusted R Square | B6: =1-(B14/B13)*(C13/C14) ->  | K6: Regression SS, Residual SS
A7: Standard Error | B7: =M4 -> 0
A8: Observations | B8: =COUNT(#REF!) -> 0 | K8: Confidence level | L8: 0.95
K9: t Critical Value | L9: =TINV(1-L8, B13) -> 
A10: ANOVA | K10: Half Width b0 | L10: =L$9 * C17 -> 
B11: df | C11: SS | D11: MS | E11: F | F11: Significance F | K11: Half Width b1 | L11: =L$9 * C18 -> 
A12: Regression | B12: =B14-B13 -> -1 | C12: =L6 -> 0 | D12: =C12/B12 -> 0 | E12: =L5 -> 0 | F12: =FDIST(E12,B12,B13) ->  | K12: Half Width b2 | L12: =L$9 * C19 -> 
A13: Residual | B13: =M5 -> 0 | C13: =M6 -> 0 | D13: =C13/B13 -> 
A14: Total | B14: =B8-1 -> -1 | C14: =C12+C13 -> 0
B16: Coefficients | C16: Standard Error | D16: t Stat | E16: P-value | F16: ="Lower " & TEXT(L8, "##%") -> Lower 95% | G16: ="Upper " & TEXT(L8, "##%") -> Upper 95% | H16: =F16 -> Lower 95% | I16: Upper 95%
A17: Intercept | B17: =N2 -> 0 | C17: =N3 -> 0 | D17: =B17/C17 ->  | E17: =TDIST(ABS(D17),B$13,2) ->  | F17: =B17-L10 ->  | G17: =B17+L10 -> 
B18: =M2 -> 0 | C18: =M3 -> 0 | D18: =B18/C18 ->  | E18: =TDIST(ABS(D18),B$13,2) ->  | F18: =B18-L11 ->  | G18: =B18+L11 -> 
B19: =L2 -> 0 | C19: =L3 -> 0 | D19: =B19/C19 ->  | E19: =TDIST(ABS(D19),B$13,2) ->  | F19: =B19-L12 ->  | G19: =B19+L12 -> 

Sheet SLRWS
A1: Simple Linear Regression | K1: Calculations
K2: b1, b0 Coefficients
A3: Regression Statistics | K3: b1, b0 Standard Error
A4: Multiple R | B4: =SQRT(C12/C14) ->  | K4: R Square, Standard Error
A5: R Square | B5: =L4 -> 0 | K5: F, Residual df
A6: Adjusted R Square | B6: =1-(B14/B13)*(C13/C14) ->  | K6: Regression SS, Residual SS
A7: Standard Error | B7: =M4 -> 0
A8: Observations | B8: =COUNT(#REF!) -> 0 | K8: Confidence level | L8: 0.95
K9: t Critical Value | L9: =TINV(1-L8,B13) -> 
A10: ANOVA | K10: Half Width b0 | L10: =L9*C17 -> 
B11: df | C11: SS | D11: MS | E11: F | F11: Significance F | K11: Half Width b1 | L11: =L9*C18 -> 
A12: Regression | B12: 1 | C12: =L6 -> 0 | D12: =L6 -> 0 | E12: =L5 -> 0 | F12: =FDIST(E12,B12,B13) -> 
A13: Residual | B13: =M5 -> 0 | C13: =M6 -> 0 | D13: =C13/B13 -> 
A14: Total | B14: =B12+B13 -> 1 | C14: =C12+C13 -> 0
B16: Coefficients | C16: Standard Error | D16: t Stat | E16: P-value | F16: ="Lower " & L8*100 & "%" -> Lower 95% | G16: ="Upper " & L8*100 & "%" -> Upper 95% | H16: =F16 -> Lower 95% | I16: Upper 95%
A17: Intercept | B17: =M2 -> 0 | C17: =M3 -> 0 | D17: =B17/C17 ->  | E17: =TDIST(ABS(D17),B13,2) ->  | F17: =B17-L10 ->  | G17: =B17+L10 -> 
B18: =L2 -> 0 | C18: =L3 -> 0 | D18: =B18/C18 ->  | E18: =TDIST(ABS(D18),B13,2) ->  | F18: =B18-L11 ->  | G18: =B18+L11 -> 

Sheet BESTWS
A1: Best Subset Analysis
A3: Intermediate Calculations
A4: R2T
A5: 1 - R2T | B5: =1-B4 -> 1
A6: n
A7: T | B7: 0
A8: n - T | B8: =B6-B7 -> 0
A10: Model | B10: Cp | C10: k+1 | D10: R Square | E10: Adj. R Square | F10: Std. Error
A11: X1 | B11: =((1-D11)*($B$8))/$B$5-$B$6+2*(C11) -> 0

Sheet ATFRWS
A1: Anova: Two-Factor With Replication
A3: SUMMARY | B3: CF1 | C3: CF2 | D3: CF3 | E3: CF4 | F3: Total
A4: RF1
A5: Count | C5: =B5 -> 0 | D5: =B5 -> 0 | E5: =B5 -> 0 | F5: =SUM(B5:E5) -> 0
A6: Sum | F6: =SUM(B6:E6) -> 0
A7: Average | F7: =AVERAGE(B7:E7) -> 
A8: Variance
A10: RF2
A11: Count | C11: =B11 -> 0 | D11: =B11 -> 0 | E11: =B11 -> 0 | F11: =SUM(B11:E11) -> 0
A12: Sum | F12: =SUM(B12:E12) -> 0
A13: Average | F13: =AVERAGE(B13:E13) -> 
A14: Variance
A16: Total
A17: Count | C17: x | D17: x | E17: x
A18: Sum
A19: Average
A20: Variance
A23: ANOVA
A24: Source of Variation | B24: SS | C24: df | D24: MS | E24: F | F24: P-value | G24: F crit
A25: Sample | C25: 1 | D25: =B25/C25 -> 0 | E25: =D25/D$28 ->  | F25: =FDIST(E25,C25,C$28) ->  | G25: =FINV(G$31,C25,C$28) -> 
A26: Columns | C26: =COUNTA(3:3)-3 -> 3 | D26: =B26/C26 -> 0 | E26: =D26/D$28 ->  | F26: =FDIST(E26,C26,C$28) ->  | G26: =FINV(G$31,C26,C$28) -> 
A27: Interaction | B27: =B30-B25-B26-B28 -> 0 | C27: =C25*C26 -> 3 | D27: =B27/C27 -> 0 | E27: =D27/D$28 ->  | F27: =FDIST(E27,C27,C$28) -> 
A28: Within | C28: =(C25+1)*(C26+1)*(B5-1) -> -8 | D28: =B28/C28 -> 0
A30: Total | C30: =SUM(C25:C28) -> -1
D31: Level of significance | G31: 0.05

Sheet ASFWS
A1: Anova: Single Factor | I1: Calculations
I2: c
A3: SUMMARY | I3: n | J3: =SUM(B5:B8) -> 0
A4: Groups | B4: Count | C4: Sum | D4: Average | E4: Variance
A5: Group 1
A6: Group 2
A7: Group 3
A8: Group 4
A11: ANOVA
A12: Source of Variation | B12: SS | C12: df | D12: MS | E12: F | F12: P-value | G12: F crit
A13: Between Groups | C13: =J2-1 -> -1 | D13: =B13/C13 -> 0 | E13: =D13/D14 ->  | F13: =FDIST(E13,C13,C14) ->  | G13: =FINV(G17,C13,C14) -> 
A14: Within Groups | B14: =B16-B13 -> 0 | C14: =J3-J2 -> 0 | D14: =B14/C14 -> 
A16: Total | C16: =C13+C14 -> -1
D17: Level of significance | G17: 0.05

Sheet DotScaleWS
A1: Data
B2: =(COUNTIF($A$2:$A$5,$A2)-1)*0.025+1 -> 0.975 | C2: Mean | G2: Quartile Calculations
B3: =(COUNTIF($A$2:$A$5,$A3)-1)*0.025+1-(COUNTIF($A$2:$A2,$A3)*0.025) -> 0.975 | C3: =AVERAGE(A:A) ->  | D3: 0.95 | G3: Initial first quartile rank | H3: =(COUNT(A:A)+1)/4 -> 0.25
B4: =(COUNTIF($A$2:$A$5,$A4)-1)*0.025+1-(COUNTIF($A$2:$A3,$A4)*0.025) -> 0.975 | C4: =AVERAGE(A:A) ->  | D4: 0.7 | H4: =IF(H3=INT(H3),"Rule 1 applies", IF(H3=CEILING(H3,0.5),"Rule 2 applies", "Rule 3 applies")) -> Rule 3 applies
B5: =(COUNTIF($A$2:$A$5,$A5)-1)*0.025+1-(COUNTIF($A$2:$A4,$A5)*0.025) -> 0.975 | C5: Median | G5: =IF(H4="Rule 2 applies", "average these ranks:", "use rank:") -> use rank: | H5: =IF(H4="Rule 2 applies", FLOOR(H3,1), ROUND(H3,0)) -> 0 | I5: =IF(H4="Rule 2 applies", CEILING(H3,1), "") -> 
B6: =(COUNTIF($A$2:$A$18,$A6)-1)*0.025+1-(COUNTIF($A$2:$A5,$A6)*0.025) -> 0.975 | C6: =MEDIAN(A:A) ->  | D6: 0.95 | G6: =IF(H4="Rule 2 applies", "average these values:", "value of rank:") -> value of rank: | H6: =SMALL(A:A,H5) ->  | I6: =IF(H4="Rule 2 applies", SMALL(A:A,I5), "") -> 
B7: =(COUNTIF($A$2:$A$18,$A7)-1)*0.025+1-(COUNTIF($A$2:$A6,$A7)*0.025) -> 0.975 | C7: =MEDIAN(A:A) ->  | D7: 0.7 | G7: first quartile: | H7: =IF(H4="Rule 2 applies",(H6+I6)/2,H6) -> 
B8: =(COUNTIF($A$2:$A$18,$A8)-1)*0.025+1-(COUNTIF($A$2:$A7,$A8)*0.025) -> 0.975 | C8: 1st Quartile | G8: Initial third quartile rank | H8: =(3*(COUNT(A:A)+1))/4 -> 0.75
B9: =(COUNTIF($A$2:$A$18,$A9)-1)*0.025+1-(COUNTIF($A$2:$A8,$A9)*0.025) -> 0.975 | C9: =H7 ->  | D9: 0.95 | H9: =IF(H8=INT(H8),"Rule 1 applies", IF(H8=CEILING(H8,0.5),"Rule 2 applies", "Rule 3 applies")) -> Rule 3 applies
B10: =(COUNTIF($A$2:$A$18,$A10)-1)*0.025+1-(COUNTIF($A$2:$A9,$A10)*0.025) -> 0.975 | C10: =H7 ->  | D10: 0.7 | G10: =IF(H9="Rule 2 applies", "average these ranks:", "use rank:") -> use rank: | H10: =IF(H9="Rule 2 applies",FLOOR(H8,1),ROUND(H8,0)) -> 1 | I10: =IF(H9="Rule 2 applies", CEILING(H8,1), "") -> 
B11: =(COUNTIF($A$2:$A$18,$A11)-1)*0.025+1-(COUNTIF($A$2:$A10,$A11)*0.025) -> 0.975 | C11: 3rd Quartile | G11: =IF(H9="Rule 2 applies", "average these values:", "value of rank:") -> value of rank: | H11: =SMALL(A:A,H10) ->  | I11: =IF(H9="Rule 2 applies",SMALL(A:A,I10),"") -> 
B12: =(COUNTIF($A$2:$A$18,$A12)-1)*0.025+1-(COUNTIF($A$2:$A11,$A12)*0.025) -> 0.975 | C12: =H12 ->  | D12: 0.95 | G12: third quartile: | H12: =IF(H9="Rule 2 applies",(H11+I11)/2,H11) -> 
B13: =(COUNTIF($A$2:$A$18,$A13)-1)*0.025+1-(COUNTIF($A$2:$A12,$A13)*0.025) -> 0.975 | C13: =H12 ->  | D13: 0.7
B14: =(COUNTIF($A$2:$A$18,$A14)-1)*0.025+1-(COUNTIF($A$2:$A13,$A14)*0.025) -> 0.975 | C14: Std. Deviation
B15: =(COUNTIF($A$2:$A$18,$A15)-1)*0.025+1-(COUNTIF($A$2:$A14,$A15)*0.025) -> 0.975 | C15: =STDEV(A:A) ->  | D15: =C15*2 ->  | E15: =C15*3 -> 
B16: =(COUNTIF($A$2:$A$18,$A16)-1)*0.025+1-(COUNTIF($A$2:$A15,$A16)*0.025) -> 0.975 | C16: 1 Std. Dev
B17: =(COUNTIF($A$2:$A$18,$A17)-1)*0.025+1-(COUNTIF($A$2:$A16,$A17)*0.025) -> 0.975 | C17: =$C$3-$C$15 ->  | D17: 0.9
B18: =(COUNTIF($A$2:$A$18,$A18)-1)*0.025+1-(COUNTIF($A$2:$A17,$A18)*0.025) -> 0.975 | C18: =$C$3+$C$15 ->  | D18: 0.9
C19: 2 Std Dev.
C20: =$C$3-$D$15 ->  | D20: 0.8
C21: =$C$3+$D$15 ->  | D21: 0.8
C22: 3 Std Dev
C23: =$C$3-$E$15 ->  | D23: 0.7
C24: =$C$3+$E$15 ->  | D24: 0.7
E26: Summary
E27: Mean | F27: =C3 -> 
E28: Median | F28: =C6 -> 
E29: 1st Quartile | F29: =C9 -> 
E30: 3rd Quartile | F30: =C12 -> 
E31: Std. Deviation | F31: =C15 -> 

Sheet CIPVWS
A1: Confidence Interval Estimate for the Population Variance
A3: Data
A4: Sample Size | B4: 2
A5: Sample Standard Deviation | B5: 1
A6: Confidence Level | B6: 0.95
A8: Intermediate Calculations
A9: Degrees of Freedom | B9: =B4-1 -> 1
A10: Sum of Squares | B10: =B9*B5^2 -> 1
A11: Single Tail Area | B11: =(1-B6)/2 -> 0.025
A12: Lower Chi-Square Value | B12: =CHIINV(1-B11, B9) -> 0.0009820691172
A13: Upper Chi-Square Value | B13: =CHIINV(B11, B9) -> 5.023886187
A15: Results
A16: Interval Lower Limit for Variance | B16: =B10/B13 -> 0.1990490952
A17: Interval Upper Limit for Variance | B17: =B10/B12 -> 1018.25827
A19: Interval Lower Limit for Standard Deviation | B19: =SQRT(B16) -> 0.4461491849
A20: Interval Upper Limit for Standard Deviation | B20: =SQRT(B17) -> 31.91015935
A22: Assumption:
A23: Population from which sample was drawn has an approximate normal distribution.

Sheet CSTVWS
A1: Chi-Square Test of Hypothesis for the Variance
A3: Data
A4: Null Hypothesis s^2= | B4: 1
A5: Level of Significance | B5: 0.05
A6: Sample Size | B6: 10
A7: Sample Standard Deviation | B7: 2
A9: Intermediate Calculations
A10: Degrees of Freedom | B10: =B6-1 -> 9
A11: Half Area | B11: =B5/2 -> 0.025
A12: Chi-Square Statistic | B12: =B10*B7^2/B4 -> 36
A14: Two-Tail Test
A15: Lower Critical Value | B15: =CHIINV(1-B11,B10) -> 2.7003895
A16: Upper Critical Value | B16: =CHIINV(B11,B10) -> 19.0227678
A17: p-Value | B17: =IF(B12<CHIINV(0.5,B10),1-CHIDIST(B12,B10),CHIDIST(B12,B10)) -> 3.964658798e-05
A18: =IF(B17<$B$5/2,"Reject the null hypothesis","Do not reject the null hypothesis") -> Reject the null hypothesis
A20: Lower-Tail Test
A21: Lower Critical Value | B21: =CHIINV(1-B5,B10) -> 3.325112843
A22: p-Value | B22: =1-CHIDIST(B12,B10) -> 0.9999603534
A23: =IF(B22<$B$5,"Reject the null hypothesis","Do not reject the null hypothesis") -> Do not reject the null hypothesis
A25: Upper-Tail Test
A26: Upper Critical Value | B26: =CHIINV(B5,B10) -> 16.9189776
A27: p-Value | B27: =CHIDIST(B12,B10) -> 3.964658798e-05
A28: =IF(B27<$B$5,"Reject the null hypothesis","Do not reject the null hypothesis") -> Reject the null hypothesis

Sheet CovarianceWS
A1: Covariance Analysis
A3: Probabilities & Outcomes: | B3: P | C3: X | D3: Y
A7: Weight Assigned to X | B7: 0.5
A9: Statistics
A10: E(X) | B10: =SUMPRODUCT(B4:B5,C4:C5) -> 0 | E10: Calculations Area
A11: E(Y) | B11: =SUMPRODUCT(B4:B5,D4:D5) -> 0 | E11: For variance and standard deviation: | I11: For covariance:
A12: Variance(X) | B12: =SUMPRODUCT(B4:B5,G13:G14) -> 0 | E12: X-mu | F12: Y-mu | G12: (X-mu)^2 | H12: (Y-mu)^2 | I12: (X-mu)(Y-mu)
A13: Standard Deviation(X) | B13: =SQRT(B12) -> 0 | E13: =C4-$B$10 -> 0 | F13: =D4-$B$11 -> 0 | G13: =E13^2 -> 0 | H13: =F13^2 -> 0 | I13: =E13*F13 -> 0
A14: Variance(Y) | B14: =SUMPRODUCT(B4:B5,H13:H14) -> 0 | E14: =C5-$B$10 -> 0 | F14: =D5-$B$11 -> 0 | G14: =E14^2 -> 0 | H14: =F14^2 -> 0 | I14: =E14*F14 -> 0
A15: Standard Deviation(Y) | B15: =SQRT(B14) -> 0
A16: Covariance(XY) | B16: =SUMPRODUCT(B4:B5,I13:I14) -> 0
A17: Variance(X+Y) | B17: =B12+B14+2*B16 -> 0
A18: Standard Deviation(X+Y) | B18: =SQRT(B17) -> 0
A20: Portfolio Management
A21: Weight Assigned to X | B21: =B7 -> 0.5
A22: Weight Assigned to Y | B22: =1-B21 -> 0.5
A23: Portfolio Expected Return | B23: =B21*B10+B22*B11 -> 0
A24: Portfolio Risk | B24: =SQRT(B21^2*B12+B22^2*B14+2*B21*B22*B16) -> 0

Sheet TSPTWS
A1: Paired t Test
A3: Data
A4: Hypothesized Mean Difference | B4: 0
A5: Level of significance | B5: 0.05
A7: Intermediate Calculations
A8: Sample Size | B8: 2
A9: DBar | B9: 1
A10: Degrees of Freedom | B10: =B8-1 -> 1
A11: SD | B11: 1
A12: Standard Error | B12: =B11/SQRT(B8) -> 0.7071067812
A13: t Test Statistic | B13: =(B9-B4)/B12 -> 1.414213562
A15: Two-Tail Test | D15: TDIST Calculations
A16: Lower Critical Value | B16: =-TINV(B5,B10) -> -12.70620474 | D16: TDIST | E16: =TDIST(ABS(B13),B10,1) -> 0.195913276
A17: Upper Critical Value | B17: =TINV(B5,B10) -> 12.70620474 | D17: 1-TDIST | E17: =1-E16 -> 0.804086724
A18: p-Value | B18: =TDIST(ABS(B13),B10,2) -> 0.391826552
A19: =IF(B18 < B5, "Reject the null hypothesis", "Do not reject the null hypothesis") -> Do not reject the null hypothesis
A21: Lower-Tail Test
A22: Lower Critical Value | B22: =-TINV(2*B5,B10) -> -6.313751515
A23: p-Value | B23: =IF(B13<0,E16,E17) -> 0.804086724
A24: =IF(B23 < B5, "Reject the null hypothesis", "Do not reject the null hypothesis") -> Do not reject the null hypothesis
A26: Upper-Tail Test
A27: Upper Critical Value | B27: =TINV(2*B5,B10) -> 6.313751515
A28: p-Value | B28: =IF(B13<0,E17,E16) -> 0.195913276
A29: =IF(B28 < B5, "Reject the null hypothesis", "Do not reject the null hypothesis") -> Do not reject the null hypothesis

Sheet TSTTSVWS
A1: Separate-Variances t Test for the Difference Between Two Means
A2: (assumes unequal population variances)
A3: Data
A4: Hypothesized Difference | B4: 0
A5: Level of Significance | B5: 0.05
A6: Population 1 Sample
A7: Sample Size | B7: 10
A8: Sample Mean | B8: 50.3
A9: Sample Standard Deviation | B9: 18.7264
A10: Population 2 Sample
A11: Sample Size | B11: 10
A12: Sample Mean | B12: 72
A13: Sample Standard Deviation | B13: 12.5433
A15: Intermediate Calculations | D15: Calculations Area
A16: Numerator of Degrees of Freedom | B16: =(E18+E19)^2 -> 2580.766309 | D16: Pop. 1 Sample Variance | E16: =B9^2 -> 350.678057
A17: Denominator of Degrees of Freedom | B17: =(E18^2)/(B7-1)+(E19^2)/(B11-1) -> 164.1435613 | D17: Pop. 2 Sample Variance | E17: =B13^2 -> 157.3343749
A18: Total Degrees of Freedom | B18: =B16/B17 -> 15.72261677 | D18: Pop. 1 Sample Var./Sample Size | E18: =E16/B7 -> 35.0678057
A19: Degrees of Freedom | B19: =INT(B18) -> 15 | D19: Pop. 2 Sample Var./Sample Size | E19: =E17/B11 -> 15.73343749
A20: Standard Error | B20: =SQRT(E18+E19) -> 7.127499083 | D20: For one-tailed tests:
A21: Difference in Sample Means | B21: =B8-B12 -> -21.7 | D21: TDIST value | E21: =TDIST(ABS(B22),B19,1) -> 0.004097052905
A22: Separate-Variance t Test Statistic | B22: =(B21-B4)/B20 -> -3.044546165 | D22: 1-TDIST value | E22: =1-E21 -> 0.9959029471
A24: Two-Tail Test
A25: Lower Critical Value | B25: =-(TINV(B5,B19)) -> -2.131449546
A26: Upper Critical Value | B26: =TINV(B5,B19) -> 2.131449546
A27: p-Value | B27: =TDIST(ABS(B22),B19,2) -> 0.008194105809
A28: =IF(B27<B5,"Reject the null hypothesis","Do not reject the null hypothesis") -> Reject the null hypothesis
A30: Lower-Tail Test
A31: Lower Critical Value | B31: =-(TINV(2*B5,B19)) -> -1.753050356
A32: p-Value | B32: =IF(B22<0,E21,E22) -> 0.004097052905
A33: =IF(B32<B5,"Reject the null hypothesis","Do not reject the null hypothesis") -> Reject the null hypothesis
A35: Upper-Tail Test
A36: Upper Critical Value | B36: =(TINV(2*B5,B19)) -> 1.753050356
A37: p-Value | B37: =IF(B22<0,E22,E21) -> 0.9959029471
A38: =IF(B37<B5,"Reject the null hypothesis","Do not reject the null hypothesis") -> Do not reject the null hypothesis

Sheet TSTTWS
A1: Pooled-Variance t Test for the Difference Between Two Means
A2: (assumes equal population variances)
A3: Data | D3: Confidence Interval Estimate
A4: Hypothesized Difference | B4: 0 | D4: for the Difference Between Two Means
A5: Level of Significance | B5: 0.05
A6: Population 1 Sample | D6: Data
A7: Sample Size | B7: 10 | D7: Confidence Level | E7: 0.95
A8: Sample Mean | B8: 1
A9: Sample Standard Deviation | B9: 1 | D9: Intermediate Calculations
A10: Population 2 Sample | D10: Degrees of Freedom | E10: =B16+B17 -> 18
A11: Sample Size | B11: 10 | D11: t Value | E11: =TINV(1-E7,E10) -> 2.10092204
A12: Sample Mean | B12: 2 | D12: Interval Half Width | E12: =(E11*SQRT(B19*(1/B7+1/B11))) -> 1.485576221
A13: Sample Standard Deviation | B13: 2
D14: Confidence Interval
A15: Intermediate Calculations | D15: Interval Lower Limit | E15: =B21-E12 -> -2.485576221
A16: Population 1 Sample Degrees of Freedom | B16: =B7-1 -> 9 | D16: Interval Upper Limit | E16: =B21+E12 -> 0.4855762214
A17: Population 2 Sample Degrees of Freedom | B17: =B11-1 -> 9
A18: Total Degrees of Freedom | B18: =B16+B17 -> 18
A19: Pooled Variance | B19: =((B16*B9^2)+(B17*B13^2))/B18 -> 2.5
A20: Standard Error | B20: =SQRT(B19*(1/B7+1/B11)) -> 0.7071067812
A21: Difference in Sample Means | B21: =B8-B12 -> -1
A22: t Test Statistic | B22: =(B21-B4)/B20 -> -1.414213562
A24: Two-Tail Test
A25: Lower Critical Value | B25: =-(TINV(B5,B18)) -> -2.10092204
A26: Upper Critical Value | B26: =TINV(B5,B18) -> 2.10092204
A27: p-Value | B27: =TDIST(ABS(B22),B18,2) -> 0.1743634884
A28: =IF(B27<$B$5,"Reject the null hypothesis","Do not reject the null hypothesis") -> Do not reject the null hypothesis
A30: Lower-Tail Test | D30: Calculations Area
A31: Lower Critical Value | B31: =-(TINV(2*B5,B18)) -> -1.734063607 | D31: For one-tailed tests:
A32: p-Value | B32: =IF(B22<0,E32,E33) -> 0.0871817442 | D32: TDIST value | E32: =TDIST(ABS(B22),B18,1) -> 0.0871817442
A33: =IF(B32<$B$5,"Reject the null hypothesis","Do not reject the null hypothesis") -> Do not reject the null hypothesis | D33: 1-TDIST value | E33: =1-E32 -> 0.9128182558
A35: Upper-Tail Test
A36: Upper Critical Value | B36: =(TINV(2*B5,B18)) -> 1.734063607
A37: p-Value | B37: =IF(B22<0,E33,E32) -> 0.9128182558
A38: =IF(B37<$B$5,"Reject the null hypothesis","Do not reject the null hypothesis") -> Do not reject the null hypothesis

Sheet TSZTWS
A1: Z Test for Differences in Two Means
A3: Data
A4: Hypothesized Difference | B4: 0
A5: Level of Significance | B5: 0.05
A6: Population 1 Sample
A7: Sample Size | B7: 25
A8: Sample Mean | B8: 5
A9: Population Standard Deviation | B9: 3
A10: Population 2 Sample
A11: Sample Size | B11: 45
A12: Sample Mean | B12: 8
A13: Population Standard Deviation | B13: 4
A15: Intermediate Calculations
A16: Difference in Sample Means | B16: =B8-B12 -> -3
A17: Standard Error of the Difference in Means | B17: =SQRT(((B9 ^ 2) / B7) + (B13 ^ 2) / B11) -> 0.8459051694
A18: Z-Test Statistic | B18: =(B16-B4)/B17 -> -3.546496828
A20: Two-Tail Test
A21: Lower Critical Value | B21: =NORMSINV(B5/2) -> -1.959963985
A22: Upper Critical Value | B22: =NORMSINV(1-(B5/2)) -> 1.959963985
A23: p-Value | B23: =2*(1-NORMSDIST(ABS(B18))) -> 0.000390389442
A24: =IF(B23<$B$5, "Reject the null hypothesis", "Do not reject the null hypothesis") -> Reject the null hypothesis
A26: Lower-Tail Test
A27: Lower Critical Value | B27: =NORMSINV(B5) -> -1.644853627
A28: p-Value | B28: =NORMSDIST(B18) -> 0.000195194721
A29: =IF(B28 < $B$5, "Reject the null hypothesis", "Do not reject the null hypothesis") -> Reject the null hypothesis
A31: Upper-Tail Test
A32: Upper Critical Value | B32: =NORMSINV(1-B5) -> 1.644853627
A33: p-Value | B33: =1-NORMSDIST(B18) -> 0.9998048053
A34: =IF(B33<$B$5, "Reject the null hypothesis", "Do not reject the null hypothesis") -> Do not reject the null hypothesis

Sheet TSZTPWS
A1: Z Test for Differences in Two Proportions
A3: Data | D3: Confidence Interval Estimate
A4: Hypothesized Difference | B4: 0 | D4: of the Difference Between Two Proportions
A5: Level of Significance | B5: 0.05
A6: Group 1 | D6: Data
A7: Number of Items of Interest | B7: 1 | D7: Confidence Level | E7: 0.95
A8: Sample Size | B8: 10
A9: Group 2 | D9: Intermediate Calculations
A10: Number of Items of Interest | B10: 2 | D10: Z Value | E10: =NORMSINV((1-E7)/2) -> -1.959963985
A11: Sample Size | B11: 20 | D11: Std. Error of the Diff. between two Proportions | E11: =SQRT((B14*(1-B14)/B8)+(B15*(1-B15)/B11)) -> 0.1161895004
D12: Interval Half Width | E12: =ABS(E10*E11) -> 0.2277272361
A13: Intermediate Calculations
A14: Group 1 Proportion | B14: =B7/B8 -> 0.1 | D14: Confidence Interval
A15: Group 2 Proportion | B15: =B10/B11 -> 0.1 | D15: Interval Lower Limit | E15: =B16-E12 -> -0.2277272361
A16: Difference in Two Proportions | B16: =B14-B15 -> 0 | D16: Interval Upper Limit | E16: =B16+E12 -> 0.2277272361
A17: Average Proportion | B17: =(B7+B10)/(B8+B11) -> 0.1
A18: Z Test Statistic | B18: =(B16-B4)/SQRT(B17*(1-B17)*(1/B8+1/B11)) -> 0
A20: Two-Tail Test
A21: Lower Critical Value | B21: =NORMSINV(B5/2) -> -1.959963985
A22: Upper Critical Value | B22: =NORMSINV(1-B5/2) -> 1.959963985
A23: p-Value | B23: =2*(1-NORMSDIST(ABS(B18))) -> 1
A24: =IF(B23<$B$5,"Reject the null hypothesis","Do not reject the null hypothesis") -> Do not reject the null hypothesis
A26: Lower-Tail Test
A27: Lower Critical Value | B27: =NORMSINV(B5) -> -1.644853627
A28: p-Value | B28: =NORMSDIST(B18) -> 0.5
A29: =IF(B28<$B$5,"Reject the null hypothesis","Do not reject the null hypothesis") -> Do not reject the null hypothesis
A31: Upper-Tail Test
A32: Upper Critical Value | B32: =NORMSINV(1-B5) -> 1.644853627
A33: p-Value | B33: =1-NORMSDIST(B18) -> 0.5
A34: =IF(B33<$B$5,"Reject the null hypothesis","Do not reject the null hypothesis") -> Do not reject the null hypothesis

Sheet TSFTWS
A1: F Test for Differences in Two Variances
A3: Data
A4: Level of Significance | B4: 0.05
A5: Larger-Variance Sample
A6: Sample Size | B6: 10
A7: Sample Variance | B7: 1
A8: Smaller-Variance Sample
A9: Sample Size | B9: 10
A10: Sample Variance | B10: 1
A12: Intermediate Calculations
A13: F Test Statistic | B13: =B7/B10 -> 1
A14: Population 1 Sample Degrees of Freedom | B14: =B6-1 -> 9
A15: Population 2 Sample Degrees of Freedom | B15: =B9-1 -> 9
D16: Calculations Area
A17: Two-Tail Test | D17: FDIST value | E17: =FDIST(B13,B14,B15) -> 0.5
A18: Upper Critical Value | B18: =FINV(B4/2,B14,B15) -> 4.025994158
A19: p-Value | B19: =2*E17 -> 1
A20: =IF(B19<B4,"Reject the null hypothesis","Do not reject the null hypothesis") -> Do not reject the null hypothesis
A22: Upper-Tail Test
A23: Upper Critical Value | B23: =FINV(B4,B14,B15) -> 3.178893104
A24: p-Value | B24: =E17 -> 0.5
A25: =IF(B24<B4,"Reject the null hypothesis","Do not reject the null hypothesis") -> Do not reject the null hypothesis
A27: =IF(B7<B10,"Error: Review your entries for cells B6:B7 and B9:B10.","") -> 
A28: =IF(B7<B10,"You entered the largest standard deviation as part of the Smaller-Variance Sample.","") -> 

Sheet WilcoxonWS
A1: Wilcoxon Rank Sum Test for Differences in Two Medians
A3: Data
A4: Level of Significance | B4: 0.05
A6: Population 1 Sample
A7: Sample Size | B7: 1
A8: Sum of Ranks | B8: 1
A9: Population 2 Sample
A10: Sample Size | B10: 1
A11: Sum of Ranks | B11: 1
A13: Intermediate Calculations
A14: Total Sample Size n | B14: =B7+B10 -> 2
A15: T1 Test Statistic | B15: =IF(B7<=B10,B8,B11) -> 1
A16: T1 Mean | B16: =IF(B7<=B10,B7*(B14+1)/2,B10*(B14+1)/2) -> 1.5
A17: Standard Error of T1 | B17: =SQRT(B7*B10*(B14+1)/12) -> 0.5
A18: Z Test Statistic | B18: =(B15-B16)/B17 -> -1
A20: Two-Tail Test
A21: Lower Critical Value | B21: =NORMSINV(B4/2) -> -1.959963985
A22: Upper Critical Value | B22: =NORMSINV(1-B4/2) -> 1.959963985
A23: p-Value | B23: =2*(1-NORMSDIST(ABS(B18))) -> 0.3173105079
A24: =IF(B23<$B$4,"Reject the null hypothesis","Do not reject the null hypothesis") -> Do not reject the null hypothesis
A26: Lower-Tail Test
A27: Lower Critical Value | B27: =NORMSINV(B4) -> -1.644853627
A28: p-Value | B28: =NORMSDIST(B18) -> 0.1586552539
A29: =IF(B28<$B$4,"Reject the null hypothesis","Do not reject the null hypothesis") -> Do not reject the null hypothesis
A31: Upper-Tail Test
A32: Upper Critical Value | B32: =NORMSINV(1-B4) -> 1.644853627
A33: p-Value | B33: =1-NORMSDIST(B18) -> 0.8413447461
A34: =IF(B33<$B$4,"Reject the null hypothesis","Do not reject the null hypothesis") -> Do not reject the null hypothesis

Sheet ZTPWS
A1: Z Test of Hypothesis for the Proportion
A3: Data
A4: Null Hypothesis p = | B4: 0.1
A5: Level of Significance | B5: 0.05
A6: Number of Items of Interest | B6: 11
A7: Sample Size | B7: 200
A9: Intermediate Calculations
A10: Sample Proportion | B10: =B6/B7 -> 0.055
A11: Standard Error | B11: =SQRT(B4*(1-B4)/B7) -> 0.02121320344
A12: Z Test Statistic | B12: =(B10-B4)/B11 -> -2.121320344
A14: Two-Tail Test
A15: Lower Critical Value | B15: =NORMSINV(B5/2) -> -1.959963985
A16: Upper Critical Value | B16: =NORMSINV(1-B5/2) -> 1.959963985
A17: p-Value | B17: =2*(1-NORMSDIST(ABS(B12))) -> 0.03389485352
A18: =IF(B17<$B$5,"Reject the null hypothesis","Do not reject the null hypothesis") -> Reject the null hypothesis
A20: Lower-Tail Test
A21: Lower Critical Value | B21: =NORMSINV(B5) -> -1.644853627
A22: p-Value | B22: =NORMSDIST(B12) -> 0.01694742676
A23: =IF(B22<$B$5,"Reject the null hypothesis","Do not reject the null hypothesis") -> Reject the null hypothesis
A25: Upper-Tail Test
A26: Upper Critical Value | B26: =NORMSINV(1-B5) -> 1.644853627
A27: p-Value | B27: =1-NORMSDIST(B12) -> 0.9830525732
A28: =IF(B27<$B$5,"Reject the null hypothesis","Do not reject the null hypothesis") -> Do not reject the null hypothesis

Sheet TTMeanWS
A1: t Test for the Hypothesis of the Mean
A3: Data
A4: Null Hypothesis m= | B4: 120
A5: Level of Significance | B5: 0.05
A6: Sample Size | B6: 2
A7: Sample Mean | B7: 1
A8: Sample Standard Deviation | B8: 1
A10: Intermediate Calculations
A11: Standard Error of the Mean | B11: =B8/SQRT(B6) -> 0.7071067812
A12: Degrees of Freedom | B12: =B6-1 -> 1
A13: t Test Statistic | B13: =(B7-B4)/B11 -> -168.2914139
A15: Two-Tail Test
A16: Lower Critical Value | B16: =-(TINV(B5,B12)) -> -12.70620474
A17: Upper Critical Value | B17: =TINV(B5,B12) -> 12.70620474
A18: p-Value | B18: =TDIST(ABS(B13),B12,2) -> 0.003782797144
A19: =IF(B18<$B$5,"Reject the null hypothesis","Do not reject the null hypothesis") -> Reject the null hypothesis
D20: Calculations Area
A21: Lower-Tail Test | D21: For one-tailed tests:
A22: Lower Critical Value | B22: =-(TINV(2*B5,B12)) -> -6.313751515 | D22: TDIST value | E22: =TDIST(ABS(B13),B12,1) -> 0.001891398572
A23: p-Value | B23: =IF(B13<0,E22,E23) -> 0.001891398572 | D23: 1-TDIST value | E23: =1-E22 -> 0.9981086014
A24: =IF(B23<$B$5,"Reject the null hypothesis","Do not reject the null hypothesis") -> Reject the null hypothesis
A26: Upper-Tail Test
A27: Upper Critical Value | B27: =(TINV(2*B5,B12)) -> 6.313751515
A28: p-Value | B28: =IF(B13<0,E23,E22) -> 0.9981086014
A29: =IF(B28<$B$5,"Reject the null hypothesis","Do not reject the null hypothesis") -> Do not reject the null hypothesis

Sheet ZTMeanWS
A1: Z Test of the Hypothesis for the Mean
A3: Data
A4: Null Hypothesis m= | B4: 1
A5: Level of Significance | B5: 0.05
A6: Population Standard Deviation | B6: 2
A7: Sample Size | B7: 10
A8: Sample Mean | B8: 1
A10: Intermediate Calculations
A11: Standard Error of the Mean | B11: =B6/SQRT(B7) -> 0.632455532
A12: Z Test Statistic | B12: =(B8-B4)/B11 -> 0
A14: Two-Tail Test
A15: Lower Critical Value | B15: =NORMSINV(B5/2) -> -1.959963985
A16: Upper Critical Value | B16: =NORMSINV(1-B5/2) -> 1.959963985
A17: p-Value | B17: =2*(1-NORMSDIST(ABS(B12))) -> 1
A18: =IF(B17<$B$5,"Reject the null hypothesis","Do not reject the null hypothesis") -> Do not reject the null hypothesis
A20: Lower-Tail Test
A21: Lower Critical Value | B21: =NORMSINV(B5) -> -1.644853627
A22: p-Value | B22: =NORMSDIST(B12) -> 0.5
A23: =IF(B22<$B$5,"Reject the null hypothesis","Do not reject the null hypothesis") -> Do not reject the null hypothesis
A25: Upper-Tail Test
A26: Upper Critical Value | B26: =NORMSINV(1-B5) -> 1.644853627
A27: p-Value | B27: =1-NORMSDIST(B12) -> 0.5
A28: =IF(B27<$B$5,"Reject the null hypothesis","Do not reject the null hypothesis") -> Do not reject the null hypothesis

Sheet CITDWS
A1: Confidence Interval Estimate for the Total Difference
A3: Data
A4: Population Size | B4: 5000
A5: Sample Size | B5: 100
A6: Confidence Level | B6: 0.95
A8: Intermediate Calculations
A9: Sum of Differences | B9: =SUM(Data!A:A) | D9: Calculations Area
A10: Average Difference in Sample | B10: =B9/B5 ->  | D10: For standard deviation of differences:
A11: Total Difference | B11: =B4*B10 ->  | D11: Number of Differences Not = 0 | E11: =COUNT(Data!A:A)
A12: Standard Deviation of Differences | B12: =SQRT(E16) ->  | D12: Number of Differences = 0 | E12: =B5-E11 -> 
A13: FPC Factor | B13: =SQRT((B4-B5)/(B4-1)) -> 0.9900485035 | D13: SS for Differences Not = 0 | E13: =SUM(Data!B:B)
A14: Standard Error of the Total Diff. | B14: =(B4*B12*B13)/SQRT(B5) ->  | D14: SS for Differences = 0 | E14: =E12*(-B10)^2 -> 
A15: Degrees of Freedom | B15: =B5-1 -> 99 | D15: Sum of Squares | E15: =E13+E14 -> 
A16: t Value | B16: =TINV(1-B6,B15) -> 1.984216952 | D16: Variance of Differences | E16: =E15/B15 -> 
A17: Interval Half Width | B17: =B16*B14 -> 
A19: Confidence Interval
A20: Interval Lower Limit | B20: =B11-B17 -> 
A21: Interval Upper Limit | B21: =B11+B17 -> 

Sheet CIPTWS
A1: Confidence Interval Estimate for the Population Total
A3: Data
A4: Population Size | B4: 5000
A5: Sample Mean | B5: 100
A6: Sample Size | B6: 100
A7: Sample Standard Deviation | B7: 20
A8: Confidence Level | B8: 0.95
A10: Intermediate Calculations
A11: Population Total | B11: =B4*B5 -> 500000
A12: FPC Factor | B12: =SQRT((B4-B6)/(B4-1)) -> 0.9900485035
A13: Standard Error of the Total | B13: =(B4*B7*B12)/SQRT(B6) -> 9900.485035
A14: Degrees of Freedom | B14: =B6-1 -> 99
A15: t Value | B15: =TINV(1-B8,B14) -> 1.984216952
A16: Interval Half Width | B16: =B15*B13 -> 19644.71023
A18: Confidence Interval
A19: Interval Lower Limit | B19: =B11-B16 -> 480355.2898
A20: Interval Upper Limit | B20: =B11+B16 -> 519644.7102

Sheet SSPWS
A1: Sample Size for Estimating the Proportion
A3: Data
A4: Estimate of True Proportion | B4: 0.15
A5: Sampling Error | B5: 0.07
A6: Confidence Level | B6: 0.95
A8: Intermediate Calculations
A9: Z Value | B9: =NORMSINV((1-B6)/2) -> -1.959963985
A10: Calculated Sample Size | B10: =(B9^2*B4*(1-B4))/B5^2 -> 99.95632646
A12: Result
A13: Sample Size Needed | B13: =ROUNDUP(B10,0) -> 100
A16: Finite Populations
A17: Population Size | B17: 5000
A18: Calculated Sample Size | B18: =(B10*B17)/(B10+B17-1) -> 98.01645676
A19: Sample Size Needed | B19: =ROUNDUP(B18,0) -> 99

Sheet SSMWS
A1: Sample Size for Estimating the Mean
A3: Data
A4: Population Standard Deviation | B4: 25
A5: Sampling Error | B5: 5
A6: Confidence Level | B6: 0.95
A8: Intemediate Calculations
A9: Z Value | B9: =NORMSINV((1-B6)/2) -> -1.959963985
A10: Calculated Sample Size | B10: =((B9*B4)/B5)^2 -> 96.03647052
A12: Result
A13: Sample Size Needed | B13: =ROUNDUP(B10,0) -> 97
A16: Finite Populations
A17: Population Size | B17: 5000
A18: Sample Size with FPC | B18: =(B10*B17)/(B10+B17-1) -> 94.2451257
A19: Sample Size Needed | B19: =ROUNDUP(B18,0) -> 95

Sheet CIPWS
A1: Confidence Interval Estimation for the Proportion
A3: Data
A4: Sample Size | B4: 100
A5: Number of Successes | B5: 10
A6: Confidence Level | B6: 0.95
A8: Intermediate Calculations
A9: Sample Proportion | B9: =B5/B4 -> 0.1
A10: Z Value | B10: =NORMSINV((1-B6)/2) -> -1.959963985
A11: Standard Error of the Proportion | B11: =SQRT(B9*(1-B9)/B4) -> 0.03
A12: Interval Half Width | B12: =ABS(B10*B11) -> 0.05879891954
A14: Confidence Interval
A15: Interval Lower Limit | B15: =B9-B12 -> 0.04120108046
A16: Interval Upper Limit | B16: =B9+B12 -> 0.1587989195
A19: Finite Populations
A20: Population Size | B20: 5000
A21: FPC Factor | B21: =SQRT((B20-B4)/(B20-1)) -> 0.9900485035
A22: Interval Half Width | B22: =B12*B21 -> 0.05821378229
A23: Interval Lower Limit | B23: =B9-B22 -> 0.04178621771
A24: Interval Upper Limit | B24: =B9+B22 -> 0.1582137823

Sheet CIMSUWS
A1: Confidence Interval Estimate for the Mean
A3: Data
A4: Sample Standard Deviation | B4: 20
A5: Sample Mean | B5: 10
A6: Sample Size | B6: 100
A7: Confidence Level | B7: 0.95
A9: Intermediate Calculations
A10: Standard Error of the Mean | B10: =B4/SQRT(B6) -> 2
A11: Degrees of Freedom | B11: =B6-1 -> 99
A12: t Value | B12: =TINV(1-B7,B11) -> 1.984216952
A13: Interval Half Width | B13: =B12*B10 -> 3.968433903
A15: Confidence Interval
A16: Interval Lower Limit | B16: =B5-B13 -> 6.031566097
A17: Interval Upper Limit | B17: =B5+B13 -> 13.9684339
A20: Finite Populations
A21: Population Size | B21: 5000
A22: FPC Factor | B22: =SQRT((B21-B6)/(B21-1)) -> 0.9900485035
A23: Interval Half Width | B23: =B13*B22 -> 3.928942047
A24: Interval Lower Limit | B24: =B5-B23 -> 6.071057953
A25: Interval Upper Limit | B25: =B5+B23 -> 13.92894205

Sheet CIMSKWS
A1: Confidence Interval Estimate for the Mean
A3: Data
A4: Population Standard Deviation | B4: 0.02
A5: Sample Mean | B5: 10
A6: Sample Size | B6: 100
A7: Confidence Level | B7: 0.95
A9: Intermediate Calculations
A10: Standard Error of the Mean | B10: =B4/SQRT(B6) -> 0.002
A11: Z Value | B11: =NORMSINV((1-B7)/2) -> -1.959963985
A12: Interval Half Width | B12: =CONFIDENCE(1-B7,B4,B6) -> 0.003919927969
A14: Confidence Interval
A15: Interval Lower Limit | B15: =B5-B12 -> 9.996080072
A16: Interval Upper Limit | B16: =B5+B12 -> 10.00391993
A19: Finite Populations
A20: Population Size | B20: 10000
A21: FPC Factor | B21: =SQRT((B20-B6)/(B20-1)) -> 0.9950371902
A22: Interval Half Width | B22: =B12*B21 -> 0.003900474112
A23: Interval Lower Limit | B23: =B5-B22 -> 9.996099526
A24: Interval Upper Limit | B24: =B5+B22 -> 10.00390047

Sheet ExponentialWS
A1: Exponential Probability
A3: Data
A4: Mean | B4: 20
A5: X Value | B5: 0.1
A7: Results
A8: P(<=X) | B8: =EXPONDIST(B5,B4,TRUE) -> 0.8646647168

Sheet NormalWS
A1: Normal Probabilities
A3: Common Data
A4: Mean | B4: 7
A5: Standard Deviation | B5: 2
A7: Probability for X <=
A8: X Value | B8: 7
A9: Z Value | B9: =STANDARDIZE(B8,B4,B5) -> 0
A10: ="P(X<="&B8&")" -> P(X<=7) | B10: =NORMDIST(B8,B4,B5,TRUE) -> 0.5
A12: Probability for X >
A13: X Value | B13: 9
A14: Z Value | B14: =STANDARDIZE(B13,B4,B5) -> 1
A15: ="P(X>"&B13&")" -> P(X>9) | B15: =1-NORMDIST(B13,B4,B5,TRUE) -> 0.1586552539
A17: ="Probability for X<"&B8&" or X >"&B13 -> Probability for X<7 or X >9
A18: ="P(X<"&B8&" or X >"&B13 & ")" -> P(X<7 or X >9) | B18: =B10+B15 -> 0.6586552539
A20: Probability for a Range
A21: From X Value | B21: 5
A22: To X Value | B22: 9
A23: ="Z Value for " &B21 -> Z Value for 5 | B23: =STANDARDIZE(B21,B4,B5) -> -1
A24: ="Z Value for " & B22 -> Z Value for 9 | B24: =STANDARDIZE(B22,B4,B5) -> 1
A25: ="P(X<="&B21&")" -> P(X<=5) | B25: =NORMDIST(B21,B4,B5,TRUE) -> 0.1586552539
A26: ="P(X<="&B22&")" -> P(X<=9) | B26: =NORMDIST(B22,B4,B5,TRUE) -> 0.8413447461
A27: ="P("&B21&"<=X<="&B22&")" -> P(5<=X<=9) | B27: =ABS(B26-B25) -> 0.6826894921
A29: Find X and Z Given Cum. Pctage.
A30: Cumulative Percentage | B30: 0.1
A31: Z Value | B31: =NORMSINV(B30) -> -1.281551566
A32: X Value | B32: =NORMINV(B30,B4,B5) -> 4.436896869
A34: Find X Values Given a Percentage
A35: Percentage | B35: 0.95
A36: Z Value | B36: =NORMSINV((1 - B35)/2) -> -1.959963985
A37: Lower X Value | B37: =B4 + B36 * B5 -> 3.080072031
A38: Upper X Value | B38: =B4 - B36 * B5 -> 10.91992797

Sheet HypergeoWS
A1: Hypergeometric Probabilities
A3: Data
A4: Sample size | B4: 1
A5: No. of events of interest in population | B5: 1
A6: Population size | B6: 2
A8: Hypergeometric Probabilities Table
B9: X | C9: P(X)
B10: 0 | C10: =HYPGEOMDIST(B10,$B$4,$B$5,$B$6) -> 0.5
B11: 1 | C11: =HYPGEOMDIST(B11,$B$4,$B$5,$B$6) -> 0.5

Sheet PoissonWS
A1: Poisson Probabilities
A3: Data
A4: Mean/Expected number of events of interest: | E4: 3
A6: Poisson Probabilities Table
B7: X | C7: P(X) | D7: P(<=X) | E7: P(<X) | F7: P(>X) | G7: P(>=X)
B8: 0 | C8: =POISSON(B8,$E$4,FALSE) -> 0.04978706837 | D8: =POISSON(B8,$E$4,TRUE) -> 0.04978706837 | E8: =D8-C8 -> 0 | F8: =1-D8 -> 0.9502129316 | G8: =1-E8 -> 1
B9: 1 | C9: 0.1493612051 | D9: =POISSON(B9,$E$4,TRUE) -> 0.1991482735 | E9: =D9-C9 -> 0.04978706837 | F9: =1-D9 -> 0.8008517265 | G9: 0.9502129316
B10: 2 | C10: 0.2240418077 | D10: 0.4231900811 | E10: 0.1991482735 | F10: 0.5768099189 | G10: 0.8008517265
B11: 3 | C11: 0.2240418077 | D11: 0.6472318888 | E11: 0.4231900811 | F11: 0.3527681112 | G11: 0.5768099189
B12: 4 | C12: 0.1680313557 | D12: 0.8152632445 | E12: 0.6472318888 | F12: 0.1847367555 | G12: 0.3527681112
B13: 5 | C13: 0.1008188134 | D13: 0.916082058 | E13: 0.8152632445 | F13: 0.08391794203 | G13: 0.1847367555
B14: 6 | C14: 0.05040940672 | D14: 0.9664914647 | E14: 0.916082058 | F14: 0.03350853531 | G14: 0.08391794203
B15: 7 | C15: 0.02160403145 | D15: 0.9880954961 | E15: 0.9664914647 | F15: 0.01190450386 | G15: 0.03350853531
B16: 8 | C16: 0.008101511795 | D16: 0.9961970079 | E16: 0.9880954961 | F16: 0.003802992062 | G16: 0.01190450386
B17: 9 | C17: 0.002700503932 | D17: 0.9988975119 | E17: 0.9961970079 | F17: 0.00110248813 | G17: 0.003802992062
B18: 10 | C18: 0.0008101511795 | D18: 0.999707663 | E18: 0.9988975119 | F18: 0.0002923369506 | G18: 0.00110248813
B19: 11 | C19: 0.0002209503217 | D19: 0.9999286134 | E19: 0.999707663 | F19: 7.138662897e-05 | G19: 0.0002923369506
B20: 12 | C20: 5.523758042e-05 | D20: 0.999983851 | E20: 0.9999286134 | F20: 1.614904856e-05 | G20: 7.138662897e-05
B21: 13 | C21: 1.274713394e-05 | D21: 0.9999965981 | E21: 0.999983851 | F21: 3.401914613e-06 | G21: 1.614904856e-05
B22: 14 | C22: 2.731528702e-06 | D22: 0.9999993296 | E22: 0.9999965981 | F22: 6.703859112e-07 | G22: 3.401914613e-06
B23: 15 | C23: 5.463057404e-07 | D23: 0.9999998759 | E23: 0.9999993296 | F23: 1.240801708e-07 | G23: 6.703859112e-07
B24: 16 | C24: 1.024323263e-07 | D24: =POISSON(B24,$E$4,TRUE) -> 0.9999999784 | E24: =D24-C24 -> 0.9999998759 | F24: 2.164784452e-08 | G24: =1-E24 -> 1.240801708e-07
B25: 17 | C25: 1.807629288e-08 | D25: =POISSON(B25,$E$4,TRUE) -> 0.9999999964 | E25: =D25-C25 -> 0.9999999784 | F25: =1-D25 -> 3.57155161e-09 | G25: =1-E25 -> 2.164784452e-08
B26: 18 | C26: 3.01271548e-09 | D26: =POISSON(B26,$E$4,TRUE) -> 0.9999999994 | E26: =D26-C26 -> 0.9999999964 | F26: 5.588360885e-10 | G26: =1-E26 -> 3.57155161e-09
B27: 19 | C27: 4.756919179e-10 | D27: =POISSON(B27,$E$4,TRUE) -> 0.9999999999 | E27: =D27-C27 -> 0.9999999994 | F27: 8.314415822e-11 | G27: =1-E27 -> 5.588360885e-10
B28: 20 | C28: 7.135378769e-11 | D28: =POISSON(B28,$E$4,TRUE) -> 1 | E28: =D28-C28 -> 0.9999999999 | F28: 1.17904575e-11 | G28: =1-E28 -> 8.314426925e-11

Sheet BinomialWS
A1: Binomial Probabilities
A3: Data
A4: Sample size | B4: 4
A5: Probability of an event of interest | B5: 1
A7: Statistics
A8: Mean | B8: =B4*B5 -> 4
A9: Variance | B9: =B8*(1-B5) -> 0
A10: Standard deviation | B10: =SQRT(B9) -> 0
A12: Binomial Probabilities Table
B13: X | C13: P(X) | D13: P(<=X) | E13: P(<X) | F13: P(>X) | G13: P(>=X)
B14: 0 | C14: =BINOMDIST(B14,$B$4,$B$5,FALSE) ->  | D14: =BINOMDIST(B14,$B$4,$B$5,TRUE) -> 0 | E14: =D14-C14 ->  | F14: =1-D14 -> 1 | G14: =1-E14 -> 

Sheet nuLRWS
A1: Logistic Regression | G1: Y
A3: Predictor | B3: Coefficients | C3: SE Coef | D3: Z | E3: p-Value
A4: Intercept | D4: -1 | E4: =2*(1-_xlfn.NORM.S.DIST(ABS(D4),TRUE)) -> 0.3173105079

Sheet nuDescSummaryWS
A1: Measures of Central Tendency, Variation, and Shape
B3: Variable 1
A4: Mean | B4: =AVERAGE(E:E) -> 
A5: Median | B5: =MEDIAN(E:E) -> 
A6: Mode | B6: =MODE(E:E) -> 
A7: Minimum | B7: =MIN(E:E) -> 0
A8: Maximum | B8: =MAX(E:E) -> 0
A9: Range | B9: =B8 - B7 -> 0
A10: Variance | B10: =_xlfn.VAR.S(E:E) -> 
A11: Standard Deviation | B11: =_xlfn.STDEV.S(E:E) -> 
A12: Coeff. of Variation | B12: =B11/B4 -> 
A13: Skewness | B13: =SKEW(E:E) -> 
A14: Kurtosis | B14: =KURT(E:E) -> 
A15: Count | B15: =COUNT(E:E) -> 0
A16: Standard Error | B16: =B11/SQRT(B15) -> 

Sheet nuATFWORWS
A1: ANOVA: Two-Factor Without Replication
A3: SUMMARY | B3: Count | C3: Sum | D3: Average | E3: Variance
A4: Rater 1 | B4: 4 | C4: 287 | D4: 71.75 | E4: 76.25
A5: Rater 2 | B5: 4 | C5: 316 | D5: 79 | E5: 36.66666667
A6: Rater 3 | B6: 4 | C6: 313 | D6: 78.25 | E6: 90.91666667
A7: Rater 4 | B7: 4 | C7: 315 | D7: 78.75 | E7: 184.9166667
A8: Rater 5 | B8: 4 | C8: 326 | D8: 81.5 | E8: 121
A9: Rater 6 | B9: 4 | C9: 330 | D9: 82.5 | E9: 161
A11: Restaurant A | B11: 6 | C11: 465 | D11: 77.5 | E11: 21.5
A12: Restaurant B | B12: 6 | C12: 400 | D12: 66.66666667 | E12: 23.46666667
A13: Restaurant C | B13: 6 | C13: 546 | D13: 91 | E13: 33.2
A14: Restaurant D | B14: 6 | C14: 476 | D14: 79.33333333 | E14: 23.46666667
A17: ANOVA
A18: Source of Variation | B18: SS | C18: df | D18: MS | E18: F | F18: P-value | G18: F crit
A19: Rows | D19: =B19/C19 ->  | E19: =D19/D$21 ->  | F19: =_xlfn.F.DIST.RT(E19, C19, C$21) ->  | G19: =_xlfn.F.INV.RT(G$24, C19, C$21) -> 
A20: Columns | D20: =B20/C20 ->  | E20: =D20/D$21 ->  | F20: =_xlfn.F.DIST.RT(E20, C20, C$21) ->  | G20: =_xlfn.F.INV.RT(G$24, C20, C$21) -> 
A21: Error | B21: =B23-B19-B20 -> 0 | C21: =C19*C20 -> 0 | D21: =B21/C21 -> 
A23: Total | C23: =SUM(C19:C21) -> 0
D24: Level of significance | G24: 0.05

Sheet nuMRWS
A1: Multiple Regression | K1: Calculations
K2: b2, b1, b0 intercepts
A3: Regression Statistics | K3: b2, b1, b0 Standard Error
A4: Multiple R | B4: =SQRT(C12/C14) ->  | K4: R Square, Standard Error
A5: R Square | B5: =L4 -> 0 | K5: F, Residual df
A6: Adjusted R Square | B6: =1-(B14/B13)*(C13/C14) ->  | K6: Regression SS, Residual SS
A7: Standard Error | B7: =M4 -> 0
A8: Observations | B8: =COUNT(A:A) -> 0 | K8: Confidence level | L8: 0.95
K9: t Critical Value | L9: =_xlfn.T.INV.2T(1-L8, B13) -> 
A10: ANOVA | K10: Half Width b0 | L10: =L$9 * C17 -> 
B11: df | C11: SS | D11: MS | E11: F | F11: Significance F | K11: Half Width b1 | L11: =L$9 * C18 -> 
A12: Regression | B12: =B14-B13 -> -1 | C12: =L6 -> 0 | D12: =C12/B12 -> 0 | E12: =L5 -> 0 | F12: =_xlfn.F.DIST.RT(E12, B12, B13) ->  | K12: Half Width b2 | L12: =L$9 * C19 -> 
A13: Residual | B13: =M5 -> 0 | C13: =M6 -> 0 | D13: =C13/B13 -> 
A14: Total | B14: =B8-1 -> -1 | C14: =C12+C13 -> 0
B16: Coefficients | C16: Standard Error | D16: t Stat | E16: P-value | F16: ="Lower " & TEXT(L8, "##%") -> Lower 95% | G16: ="Upper " & TEXT(L8, "##%") -> Upper 95% | H16: =F16 -> Lower 95% | I16: Upper 95%
A17: Intercept | B17: =N2 -> 0 | C17: =N3 -> 0 | D17: =B17/C17 ->  | E17: =_xlfn.T.DIST.2T(ABS(D17), B$13) ->  | F17: =B17-L10 ->  | G17: =B17+L10 -> 
B18: =M2 -> 0 | C18: =M3 -> 0 | D18: =B18/C18 ->  | E18: =_xlfn.T.DIST.2T(ABS(D18), B$13) ->  | F18: =B18-L11 ->  | G18: =B18+L11 -> 
B19: =L2 -> 0 | C19: =L3 -> 0 | D19: =B19/C19 ->  | F19: =B19-L12 ->  | G19: =B19+L12 -> 

Sheet Sheet1
A1: 2 | B1: 1 | C1: 5
A2: 4 | B2: 4 | C2: 3
A3: 5 | B3: 3 | C3: 6
A4: 6 | B4: 4 | C4: 12

Sheet nuSLRWS
A1: Simple Linear Regression | K1: Calculations
K2: b1, b0 Coefficients
A3: Regression Statistics | K3: b1, b0 Standard Error
A4: Multiple R | B4: =SQRT(C12/C14) ->  | K4: R Square, Standard Error
A5: R Square | B5: =L4 -> 0 | K5: F, Residual df
A6: Adjusted R Square | B6: =1-(B14/B13)*(C13/C14) ->  | K6: Regression SS, Residual SS
A7: Standard Error | B7: =M4 -> 0
A8: Observations | B8: =COUNT(#REF!) -> 0 | K8: Confidence level | L8: 0.95
K9: t Critical Value | L9: =_xlfn.T.INV.2T(1-L8,B13) -> 
A10: ANOVA | K10: Half Width b0 | L10: =L9*C17 -> 
B11: df | C11: SS | D11: MS | E11: F | F11: Significance F | K11: Half Width b1 | L11: =L9*C18 -> 
A12: Regression | B12: 1 | C12: =L6 -> 0 | D12: =L6 -> 0 | E12: =L5 -> 0 | F12: =_xlfn.F.DIST.RT(E12,B12,B13) -> 
A13: Residual | B13: =M5 -> 0 | C13: =M6 -> 0 | D13: =C13/B13 -> 
A14: Total | B14: =B12+B13 -> 1 | C14: =C12+C13 -> 0
B16: Coefficients | C16: Standard Error | D16: t Stat | E16: P-value | F16: ="Lower " & L8*100 & "%" -> Lower 95% | G16: ="Upper " & L8*100 & "%" -> Upper 95% | H16: =F16 -> Lower 95% | I16: Upper 95%
A17: Intercept | B17: =M2 -> 0 | C17: =M3 -> 0 | D17: =B17/C17 ->  | E17: =_xlfn.T.DIST.2T(ABS(D17), B13) ->  | F17: =B17-L10 ->  | G17: =B17+L10 -> 
B18: =L2 -> 0 | C18: =L3 -> 0 | D18: =B18/C18 ->  | E18: =_xlfn.T.DIST.2T(ABS(D18), B13) ->  | F18: =B18-L11 ->  | G18: =B18+L11 -> 

Sheet nuBESTWS
A1: Best Subset Analysis
A3: Intermediate Calculations
A4: R2T
A5: 1 - R2T | B5: =1-B4 -> 1
A6: n
A7: T | B7: 0
A8: n - T | B8: =B6-B7 -> 0
A10: Model | B10: Cp | C10: k+1 | D10: R Square | E10: Adj. R Square | F10: Std. Error
A11: X1 | B11: =((1-D11)*($B$8))/$B$5-$B$6+2*(C11) -> 0

Sheet nuATFRWS
A1: Anova: Two-Factor With Replication
A3: SUMMARY | B3: CF1 | C3: CF2 | D3: CF3 | E3: CF4 | F3: Total
A4: RF1
A5: Count | C5: =B5 -> 0 | D5: =B5 -> 0 | E5: =B5 -> 0 | F5: =SUM(B5:E5) -> 0
A6: Sum | F6: =SUM(B6:E6) -> 0
A7: Average | F7: =AVERAGE(B7:E7) -> 
A8: Variance
A10: RF2
A11: Count | C11: =B11 -> 0 | D11: =B11 -> 0 | E11: =B11 -> 0 | F11: =SUM(B11:E11) -> 0
A12: Sum | F12: =SUM(B12:E12) -> 0
A13: Average | F13: =AVERAGE(B13:E13) -> 
A14: Variance
A16: Total
A17: Count | C17: x | D17: x | E17: x
A18: Sum
A19: Average
A20: Variance
A23: ANOVA
A24: Source of Variation | B24: SS | C24: df | D24: MS | E24: F | F24: P-value | G24: F crit
A25: Sample | C25: 1 | D25: =B25/C25 -> 0 | E25: =D25/D$28 ->  | F25: =_xlfn.F.DIST.RT(E25,C25,C$28) ->  | G25: =_xlfn.F.INV.RT(G$31,C25,C$28) -> 
A26: Columns | C26: =COUNTA(3:3)-3 -> 3 | D26: =B26/C26 -> 0 | E26: =D26/D$28 ->  | F26: =_xlfn.F.DIST.RT(E26,C26,C$28) ->  | G26: =_xlfn.F.INV.RT(G$31,C26,C$28) -> 
A27: Interaction | B27: =B30-B25-B26-B28 -> 0 | C27: =C25*C26 -> 3 | D27: =B27/C27 -> 0 | E27: =D27/D$28 -> 
A28: Within | C28: =(C25+1)*(C26+1)*(B5-1) -> -8 | D28: =B28/C28 -> 0
A30: Total | C30: =SUM(C25:C28) -> -1
D31: Level of significance | G31: 0.05

Sheet nuASFWS
A1: Anova: Single Factor | I1: Calculations
I2: c
A3: SUMMARY | I3: n | J3: =SUM(B5:B8) -> 0
A4: Groups | B4: Count | C4: Sum | D4: Average | E4: Variance
A5: Group 1
A6: Group 2
A7: Group 3
A8: Group 4
A11: ANOVA
A12: Source of Variation | B12: SS | C12: df | D12: MS | E12: F | F12: P-value | G12: F crit
A13: Between Groups | C13: =J2-1 -> -1 | D13: =B13/C13 -> 0 | E13: =D13/D14 ->  | F13: =_xlfn.F.DIST.RT(E13,C13,C14) ->  | G13: =_xlfn.F.INV.RT(G17,C13,C14) -> 
A14: Within Groups | B14: =B16-B13 -> 0 | C14: =J3-J2 -> 0 | D14: =B14/C14 -> 
A16: Total | C16: =C13+C14 -> -1
D17: Level of significance | G17: 0.05

Sheet nuDotScaleWS
A1: Data
B2: =(COUNTIF($A$2:$A$5,$A2)-1)*0.025+1 -> 0.975 | C2: Mean | G2: Quartile Calculations
B3: =(COUNTIF($A$2:$A$5,$A3)-1)*0.025+1-(COUNTIF($A$2:$A2,$A3)*0.025) -> 0.975 | C3: =AVERAGE(A:A) ->  | D3: 0.95 | G3: Initial first quartile rank | H3: =(COUNT(A:A)+1)/4 -> 0.25
B4: =(COUNTIF($A$2:$A$5,$A4)-1)*0.025+1-(COUNTIF($A$2:$A3,$A4)*0.025) -> 0.975 | C4: =AVERAGE(A:A) ->  | D4: 0.7 | H4: =IF(H3=INT(H3),"Rule 1 applies", IF(H3=CEILING(H3,0.5),"Rule 2 applies", "Rule 3 applies")) -> Rule 3 applies
B5: =(COUNTIF($A$2:$A$5,$A5)-1)*0.025+1-(COUNTIF($A$2:$A4,$A5)*0.025) -> 0.975 | C5: Median | G5: =IF(H4="Rule 2 applies", "average these ranks:", "use rank:") -> use rank: | H5: =IF(H4="Rule 2 applies", FLOOR(H3,1), ROUND(H3,0)) -> 0 | I5: =IF(H4="Rule 2 applies", CEILING(H3,1), "") -> 
B6: =(COUNTIF($A$2:$A$18,$A6)-1)*0.025+1-(COUNTIF($A$2:$A5,$A6)*0.025) -> 0.975 | C6: =MEDIAN(A:A) ->  | D6: 0.95 | G6: =IF(H4="Rule 2 applies", "average these values:", "value of rank:") -> value of rank: | H6: =SMALL(A:A,H5) ->  | I6: =IF(H4="Rule 2 applies", SMALL(A:A,I5), "") -> 
B7: =(COUNTIF($A$2:$A$18,$A7)-1)*0.025+1-(COUNTIF($A$2:$A6,$A7)*0.025) -> 0.975 | C7: =MEDIAN(A:A) ->  | D7: 0.7 | G7: first quartile: | H7: =IF(H4="Rule 2 applies",(H6+I6)/2,H6) -> 
B8: =(COUNTIF($A$2:$A$18,$A8)-1)*0.025+1-(COUNTIF($A$2:$A7,$A8)*0.025) -> 0.975 | C8: 1st Quartile | G8: Initial third quartile rank | H8: =(3*(COUNT(A:A)+1))/4 -> 0.75
B9: =(COUNTIF($A$2:$A$18,$A9)-1)*0.025+1-(COUNTIF($A$2:$A8,$A9)*0.025) -> 0.975 | C9: =H7 ->  | D9: 0.95 | H9: =IF(H8=INT(H8),"Rule 1 applies", IF(H8=CEILING(H8,0.5),"Rule 2 applies", "Rule 3 applies")) -> Rule 3 applies
B10: =(COUNTIF($A$2:$A$18,$A10)-1)*0.025+1-(COUNTIF($A$2:$A9,$A10)*0.025) -> 0.975 | C10: =H7 ->  | D10: 0.7 | G10: =IF(H9="Rule 2 applies", "average these ranks:", "use rank:") -> use rank: | H10: =IF(H9="Rule 2 applies",FLOOR(H8,1),ROUND(H8,0)) -> 1 | I10: =IF(H9="Rule 2 applies", CEILING(H8,1), "") -> 
B11: =(COUNTIF($A$2:$A$18,$A11)-1)*0.025+1-(COUNTIF($A$2:$A10,$A11)*0.025) -> 0.975 | C11: 3rd Quartile | G11: =IF(H9="Rule 2 applies", "average these values:", "value of rank:") -> value of rank: | H11: =SMALL(A:A,H10) ->  | I11: =IF(H9="Rule 2 applies",SMALL(A:A,I10),"") -> 
B12: =(COUNTIF($A$2:$A$18,$A12)-1)*0.025+1-(COUNTIF($A$2:$A11,$A12)*0.025) -> 0.975 | C12: =H12 ->  | D12: 0.95 | G12: third quartile: | H12: =IF(H9="Rule 2 applies",(H11+I11)/2,H11) -> 
B13: =(COUNTIF($A$2:$A$18,$A13)-1)*0.025+1-(COUNTIF($A$2:$A12,$A13)*0.025) -> 0.975 | C13: =H12 ->  | D13: 0.7
B14: =(COUNTIF($A$2:$A$18,$A14)-1)*0.025+1-(COUNTIF($A$2:$A13,$A14)*0.025) -> 0.975 | C14: Std. Deviation
B15: =(COUNTIF($A$2:$A$18,$A15)-1)*0.025+1-(COUNTIF($A$2:$A14,$A15)*0.025) -> 0.975 | C15: =_xlfn.STDEV.S(A:A) ->  | D15: =C15*2 ->  | E15: =C15*3 -> 
B16: =(COUNTIF($A$2:$A$18,$A16)-1)*0.025+1-(COUNTIF($A$2:$A15,$A16)*0.025) -> 0.975 | C16: 1 Std. Dev
B17: =(COUNTIF($A$2:$A$18,$A17)-1)*0.025+1-(COUNTIF($A$2:$A16,$A17)*0.025) -> 0.975 | C17: =$C$3-$C$15 ->  | D17: 0.9
B18: =(COUNTIF($A$2:$A$18,$A18)-1)*0.025+1-(COUNTIF($A$2:$A17,$A18)*0.025) -> 0.975 | C18: =$C$3+$C$15 ->  | D18: 0.9
C19: 2 Std Dev.
C20: =$C$3-$D$15 ->  | D20: 0.8
C21: =$C$3+$D$15 ->  | D21: 0.8
C22: 3 Std Dev
C23: =$C$3-$E$15 ->  | D23: 0.7
C24: =$C$3+$E$15 ->  | D24: 0.7
E26: Summary
E27: Mean | F27: =C3 -> 
E28: Median | F28: =C6 -> 
E29: 1st Quartile | F29: =C9 -> 
E30: 3rd Quartile | F30: =C12 -> 
E31: Std. Deviation | F31: =C15 -> 

Sheet nuCIPVWS
A1: Confidence Interval Estimate for the Population Variance
A3: Data
A4: Sample Size | B4: 2
A5: Sample Standard Deviation | B5: 1
A6: Confidence Level | B6: 0.95
A8: Intermediate Calculations
A9: Degrees of Freedom | B9: =B4-1 -> 1
A10: Sum of Squares | B10: =B9*B5^2 -> 1
A11: Single Tail Area | B11: =(1-B6)/2 -> 0.025
A12: Lower Chi-Square Value | B12: =_xlfn.CHISQ.INV.RT(1-B11, B9) -> 0.0009820691172
A13: Upper Chi-Square Value | B13: =_xlfn.CHISQ.INV.RT(B11, B9) -> 5.023886187
A15: Results
A16: Interval Lower Limit for Variance | B16: =B10/B13 -> 0.1990490952
A17: Interval Upper Limit for Variance | B17: =B10/B12 -> 1018.25827
A19: Interval Lower Limit for Standard Deviation | B19: =SQRT(B16) -> 0.4461491849
A20: Interval Upper Limit for Standard Deviation | B20: =SQRT(B17) -> 31.91015935
A22: Assumption:
A23: Population from which sample was drawn has an approximate normal distribution.

Sheet nuCSTVWS
A1: Chi-Square Test of Hypothesis for the Variance
A3: Data
A4: Null Hypothesis s^2= | B4: 1
A5: Level of Significance | B5: 0.05
A6: Sample Size | B6: 10
A7: Sample Standard Deviation | B7: 2
A9: Intermediate Calculations
A10: Degrees of Freedom | B10: =B6-1 -> 9
A11: Half Area | B11: =B5/2 -> 0.025
A12: Chi-Square Statistic | B12: =B10*B7^2/B4 -> 36
A14: Two-Tail Test
A15: Lower Critical Value | B15: =_xlfn.CHISQ.INV.RT(1-B11, B10) -> 2.7003895
A16: Upper Critical Value | B16: =_xlfn.CHISQ.INV.RT(B11, B10) -> 19.0227678
A17: p-Value | B17: =IF(B12<_xlfn.CHISQ.INV.RT(0.5, B10), 1-_xlfn.CHISQ.DIST.RT(B12, B10), _xlfn.CHISQ.DIST.RT(B12, B10)) -> 3.964658798e-05
A18: =IF(B17<$B$5/2,"Reject the null hypothesis","Do not reject the null hypothesis") -> Reject the null hypothesis
A20: Lower-Tail Test
A21: Lower Critical Value | B21: =_xlfn.CHISQ.INV.RT(1-B5, B10) -> 3.325112843
A22: p-Value | B22: =1-_xlfn.CHISQ.DIST.RT(B12, B10) -> 0.9999603534
A23: =IF(B22<$B$5,"Reject the null hypothesis","Do not reject the null hypothesis") -> Do not reject the null hypothesis
A25: Upper-Tail Test
A26: Upper Critical Value | B26: =_xlfn.CHISQ.INV.RT(B5, B10) -> 16.9189776
A27: p-Value | B27: =_xlfn.CHISQ.DIST.RT(B12,B10) -> 3.964658798e-05
A28: =IF(B27<$B$5,"Reject the null hypothesis","Do not reject the null hypothesis") -> Reject the null hypothesis

Sheet nuCovarianceWS
A1: Covariance Analysis
A3: Probabilities & Outcomes: | B3: P | C3: X | D3: Y
A7: Weight Assigned to X | B7: 0.5
A9: Statistics
A10: E(X) | B10: =SUMPRODUCT(B4:B5,C4:C5) -> 0 | E10: Calculations Area
A11: E(Y) | B11: =SUMPRODUCT(B4:B5,D4:D5) -> 0 | E11: For variance and standard deviation: | I11: For covariance:
A12: Variance(X) | B12: =SUMPRODUCT(B4:B5,G13:G14) -> 0 | E12: X-mu | F12: Y-mu | G12: (X-mu)^2 | H12: (Y-mu)^2 | I12: (X-mu)(Y-mu)
A13: Standard Deviation(X) | B13: =SQRT(B12) -> 0 | E13: =C4-$B$10 -> 0 | F13: =D4-$B$11 -> 0 | G13: =E13^2 -> 0 | H13: =F13^2 -> 0 | I13: =E13*F13 -> 0
A14: Variance(Y) | B14: =SUMPRODUCT(B4:B5,H13:H14) -> 0 | E14: =C5-$B$10 -> 0 | F14: =D5-$B$11 -> 0 | G14: =E14^2 -> 0 | H14: =F14^2 -> 0 | I14: =E14*F14 -> 0
A15: Standard Deviation(Y) | B15: =SQRT(B14) -> 0
A16: Covariance(XY) | B16: =SUMPRODUCT(B4:B5,I13:I14) -> 0
A17: Variance(X+Y) | B17: =B12+B14+2*B16 -> 0
A18: Standard Deviation(X+Y) | B18: =SQRT(B17) -> 0
A20: Portfolio Management
A21: Weight Assigned to X | B21: =B7 -> 0.5
A22: Weight Assigned to Y | B22: =1-B21 -> 0.5
A23: Portfolio Expected Return | B23: =B21*B10+B22*B11 -> 0
A24: Portfolio Risk | B24: =SQRT(B21^2*B12+B22^2*B14+2*B21*B22*B16) -> 0

Sheet RXChartWS
A1: Control Charts
D2: Control Chart Factors Table
A3: Data | D3: Subgroup size | E3: D3 | F3: D4 | G3: A2
A4: Sample/Subgroup Size | B4: 5 | D4: 2 | E4: 0 | F4: 3.267 | G4: 1.88
D5: 3 | E5: 0 | F5: 2.575 | G5: 1.023
A6: R Chart Intermediate Calculations | D6: 4 | E6: 0 | F6: 2.282 | G6: 0.729
A7: RBar | D7: 5 | E7: 0 | F7: 2.114 | G7: 0.577
A8: D3 Factor | B8: =VLOOKUP($B$4,$D$4:$G$28,2) -> 0 | D8: 6 | E8: 0 | F8: 2.004 | G8: 0.483
A9: D4 Factor | B9: =VLOOKUP($B$4,$D$4:$G$28,3) -> 2.114 | D9: 7 | E9: 0.076 | F9: 1.924 | G9: 0.419
D10: 8 | E10: 0.136 | F10: 1.864 | G10: 0.373
A11: R Chart Control Limits | D11: 9 | E11: 0.184 | F11: 1.816 | G11: 0.337
A12: Lower Control Limit | B12: =B8*B7 -> 0 | D12: 10 | E12: 0.223 | F12: 1.777 | G12: 0.308
A13: Center | B13: =B7 -> 0 | D13: 11 | E13: 0.256 | F13: 1.744 | G13: 0.285
A14: Upper Control Limit | B14: =B9*B7 -> 0 | D14: 12 | E14: 0.283 | F14: 1.717 | G14: 0.266
D15: 13 | E15: 0.307 | F15: 1.693 | G15: 0.249
A16: XBar Chart Intemediate Calculations | D16: 14 | E16: 0.328 | F16: 1.672 | G16: 0.235
A17: Average of Subgroup Averages | D17: 15 | E17: 0.347 | F17: 1.653 | G17: 0.223
A18: A2 Factor | B18: =VLOOKUP($B$4,$D$4:$G$28,4) -> 0.577 | D18: 16 | E18: 0.363 | F18: 1.637 | G18: 0.212
A19: A2 Factor * RBar | B19: =B18*B7 -> 0 | D19: 17 | E19: 0.378 | F19: 1.622 | G19: 0.203
D20: 18 | E20: 0.391 | F20: 1.609 | G20: 0.194
A21: XBar Chart Control Limits | D21: 19 | E21: 0.404 | F21: 1.596 | G21: 0.187
A22: Lower Control Limit | B22: =B17-B19 -> 0 | D22: 20 | E22: 0.415 | F22: 1.585 | G22: 0.18
A23: Center | B23: =B17 -> 0 | D23: 21 | E23: 0.425 | F23: 1.575 | G23: 0.173
A24: Upper Control Limit | B24: =B17+B19 -> 0 | D24: 22 | E24: 0.435 | F24: 1.565 | G24: 0.167
D25: 23 | E25: 0.443 | F25: 1.557 | G25: 0.162
D26: 24 | E26: 0.452 | F26: 1.548 | G26: 0.157
D27: 25 | E27: 0.459 | F27: 1.541 | G27: 0.153
D28: 26 | E28: =D30 -> Factor value not available. Possible error in sample/subgroup size. | F28: =D30 -> Factor value not available. Possible error in sample/subgroup size. | G28: =D30 -> Factor value not available. Possible error in sample/subgroup size.
D30: Factor value not available. Possible error in sample/subgroup size.

Sheet pChartWS
A1: p Chart Summary
A3: Intermediate Calculations
A4: Sum of Subgroup Sizes
A5: Number of Subgroups Taken
A6: Average Sample/Subgroup Size | B6: =B4/B5 -> 
A7: Average Proportion of Nonconforming Items
A8: Three Standard Deviations | B8: =3*SQRT(B7*(1-B7)/B6) -> 
A9: Preliminary Lower Control Limit | B9: =B7-B8 -> 
A11: p Chart Control Limits
A12: Lower Control Limit | B12: =IF(B9 > 0, B9, 0) -> 
A13: Center | B13: =B7 -> 0
A14: Upper Control Limit | B14: =B7+B8 -> 

Sheet cChartWS
A1: c Chart Summary
A3: Intermediate Calculations
A4: Sum of Nonconformities | B4: =SUM(cChartData!B:B)
A5: Number of Units Sampled | B5: =COUNT(cChartData!B:B)
A6: Cbar | B6: =B4/B5 -> 
A7: Preliminary Lower Control Limit | B7: =B6-3*SQRT(B6) -> 
A9: c Chart Control Limits
A10: Lower Control Limit | B10: =IF(B7 > 0, B7, 0) -> 
A11: Center | B11: =B6 -> 
A12: Upper Control Limit | B12: =B6+3*SQRT(B6) -> 

Sheet nuTSPTWS
A1: Paired t Test
A3: Data
A4: Hypothesized Mean Difference | B4: 0
A5: Level of significance | B5: 0.05
A7: Intermediate Calculations
A8: Sample Size | B8: 10
A9: DBar | B9: 2
A10: Degrees of Freedom | B10: =B8-1 -> 9
A11: SD | B11: 2
A12: Standard Error | B12: =B11/SQRT(B8) -> 0.632455532
A13: t Test Statistic | B13: =(B9-B4)/B12 -> 3.16227766
A15: Two-Tail Test | D15: TDIST Calculations
A16: Lower Critical Value | B16: =-_xlfn.T.INV.2T(B5, B10) -> -2.262157163 | D16: T.DIST.RT | E16: =_xlfn.T.DIST.RT(ABS(B13),B10) -> 0.005753992583
A17: Upper Critical Value | B17: =_xlfn.T.INV.2T(B5, B10) -> 2.262157163 | D17: 1-T.DIST.RT | E17: =1-E16 -> 0.9942460074
A18: p-Value | B18: =_xlfn.T.DIST.2T(ABS(B13), B10) -> 0.01150798517
A19: =IF(B18 < B5, "Reject the null hypothesis", "Do not reject the null hypothesis") -> Reject the null hypothesis
A21: Lower-Tail Test
A22: Lower Critical Value | B22: =-_xlfn.T.INV.2T(2*B5, B10) -> -1.833112933
A23: p-Value | B23: =IF(B13<0, E16, E17) -> 0.9942460074
A24: =IF(B23 < B5, "Reject the null hypothesis", "Do not reject the null hypothesis") -> Do not reject the null hypothesis
A26: Upper-Tail Test
A27: Upper Critical Value | B27: =_xlfn.T.INV.2T(2*B5, B10) -> 1.833112933
A28: p-Value | B28: =IF(B13<0, E17, E16) -> 0.005753992583
A29: =IF(B28 < B5, "Reject the null hypothesis", "Do not reject the null hypothesis") -> Reject the null hypothesis

Sheet nuTSTTSVWS
A1: Separate-Variances t Test for the Difference Between Two Means
A2: (assumes unequal population variances)
A3: Data
A4: Hypothesized Difference | B4: 0
A5: Level of Significance | B5: 0.05
A6: Population 1 Sample
A7: Sample Size | B7: 10
A8: Sample Mean | B8: 10
A9: Sample Standard Deviation | B9: 8
A10: Population 2 Sample
A11: Sample Size | B11: 10
A12: Sample Mean | B12: 18
A13: Sample Standard Deviation | B13: 10
A15: Intermediate Calculations | D15: Calculations Area
A16: Numerator of Degrees of Freedom | B16: =(E18+E19)^2 -> 268.96 | D16: Pop. 1 Sample Variance | E16: =B9^2 -> 64
A17: Denominator of Degrees of Freedom | B17: =(E18^2)/(B7-1)+(E19^2)/(B11-1) -> 15.66222222 | D17: Pop. 2 Sample Variance | E17: =B13^2 -> 100
A18: Total Degrees of Freedom | B18: =B16/B17 -> 17.17253121 | D18: Pop. 1 Sample Var./Sample Size | E18: =E16/B7 -> 6.4
A19: Degrees of Freedom | B19: =INT(B18) -> 17 | D19: Pop. 2 Sample Var./Sample Size | E19: =E17/B11 -> 10
A20: Standard Error | B20: =SQRT(E18+E19) -> 4.049691346 | D20: For one-tailed tests:
A21: Difference in Sample Means | B21: =B8-B12 -> -8 | D21: T.DIST.RT value | E21: =_xlfn.T.DIST.RT(ABS(B22),B19) -> 0.03234034994
A22: Separate-Variance t Test Statistic | B22: =(B21-B4)/B20 -> -1.975459193 | D22: 1-T.DIST.RT value | E22: =1-E21 -> 0.9676596501
A24: Two-Tail Test
A25: Lower Critical Value | B25: =-(_xlfn.T.INV.2T(B5,B19)) -> -2.109815578
A26: Upper Critical Value | B26: =_xlfn.T.INV.2T(B5,B19) -> 2.109815578
A27: p-Value | B27: =_xlfn.T.DIST.2T(ABS(B22),B19) -> 0.06468069988
A28: =IF(B27<B5,"Reject the null hypothesis","Do not reject the null hypothesis") -> Do not reject the null hypothesis
A30: Lower-Tail Test
A31: Lower Critical Value | B31: =-(_xlfn.T.INV.2T(2*B5,B19)) -> -1.739606726
A32: p-Value | B32: =IF(B22<0,E21,E22) -> 0.03234034994
A33: =IF(B32<B5,"Reject the null hypothesis","Do not reject the null hypothesis") -> Reject the null hypothesis
A35: Upper-Tail Test
A36: Upper Critical Value | B36: =(_xlfn.T.INV.2T(2*B5,B19)) -> 1.739606726
A37: p-Value | B37: =IF(B22<0,E22,E21) -> 0.9676596501
A38: =IF(B37<B5,"Reject the null hypothesis","Do not reject the null hypothesis") -> Do not reject the null hypothesis

Sheet nuTSTTWS
A1: Pooled-Variance t Test for the Difference Between Two Means
A2: (assumes equal population variances)
A3: Data | D3: Confidence Interval Estimate
A4: Hypothesized Difference | B4: 0 | D4: for the Difference Between Two Means
A5: Level of Significance | B5: 0.05
A6: Population 1 Sample | D6: Data
A7: Sample Size | B7: 10 | D7: Confidence Level | E7: 0.95
A8: Sample Mean | B8: 1
A9: Sample Standard Deviation | B9: 1 | D9: Intermediate Calculations
A10: Population 2 Sample | D10: Degrees of Freedom | E10: =B16+B17 -> 18
A11: Sample Size | B11: 10 | D11: t Value | E11: =_xlfn.T.INV.2T(1-E7, E10) -> 2.10092204
A12: Sample Mean | B12: 2 | D12: Interval Half Width | E12: =(E11*SQRT(B19*(1/B7+1/B11))) -> 1.485576221
A13: Sample Standard Deviation | B13: 2
D14: Confidence Interval
A15: Intermediate Calculations | D15: Interval Lower Limit | E15: =B21-E12 -> -2.485576221
A16: Population 1 Sample Degrees of Freedom | B16: =B7-1 -> 9 | D16: Interval Upper Limit | E16: =B21+E12 -> 0.4855762214
A17: Population 2 Sample Degrees of Freedom | B17: =B11-1 -> 9
A18: Total Degrees of Freedom | B18: =B16+B17 -> 18
A19: Pooled Variance | B19: =((B16*B9^2)+(B17*B13^2))/B18 -> 2.5
A20: Standard Error | B20: =SQRT(B19*(1/B7+1/B11)) -> 0.7071067812
A21: Difference in Sample Means | B21: =B8-B12 -> -1
A22: t Test Statistic | B22: =(B21-B4)/B20 -> -1.414213562
A24: Two-Tail Test
A25: Lower Critical Value | B25: =-(_xlfn.T.INV.2T(B5, B18)) -> -2.10092204
A26: Upper Critical Value | B26: =_xlfn.T.INV.2T(B5, B18) -> 2.10092204
A27: p-Value | B27: =_xlfn.T.DIST.2T(ABS(B22), B18) -> 0.1743634884
A28: =IF(B27<$B$5, "Reject the null hypothesis", "Do not reject the null hypothesis") -> Do not reject the null hypothesis
A30: Lower-Tail Test | D30: Calculations Area
A31: Lower Critical Value | B31: =-(_xlfn.T.INV.2T(2*B5, B18)) -> -1.734063607 | D31: For one-tailed tests:
A32: p-Value | B32: =IF(B22<0, E32, E33) -> 0.0871817442 | D32: T.DIST.RT value | E32: =_xlfn.T.DIST.RT(ABS(B22), B18) -> 0.0871817442
A33: =IF(B32<$B$5, "Reject the null hypothesis", "Do not reject the null hypothesis") -> Do not reject the null hypothesis | D33: 1-T.DIST.RT value | E33: =1-E32 -> 0.9128182558
A35: Upper-Tail Test
A36: Upper Critical Value | B36: =(_xlfn.T.INV.2T(2*B5, B18)) -> 1.734063607
A37: p-Value | B37: =IF(B22<0, E33, E32) -> 0.9128182558
A38: =IF(B37<$B$5, "Reject the null hypothesis", "Do not reject the null hypothesis") -> Do not reject the null hypothesis

Sheet nuTSZTWS
A1: Z Test for Differences in Two Means
A3: Data
A4: Hypothesized Difference | B4: 0
A5: Level of Significance | B5: 0.05
A6: Population 1 Sample
A7: Sample Size | B7: 25
A8: Sample Mean | B8: 5
A9: Population Standard Deviation | B9: 3
A10: Population 2 Sample
A11: Sample Size | B11: 45
A12: Sample Mean | B12: 8
A13: Population Standard Deviation | B13: 4
A15: Intermediate Calculations
A16: Difference in Sample Means | B16: =B8-B12 -> -3
A17: Standard Error of the Difference in Means | B17: =SQRT(((B9 ^ 2) / B7) + (B13 ^ 2) / B11) -> 0.8459051694
A18: Z Test Statistic | B18: =(B16-B4)/B17 -> -3.546496828
A20: Two-Tail Test
A21: Lower Critical Value | B21: =_xlfn.NORM.S.INV(B5/2) -> -1.959963985
A22: Upper Critical Value | B22: =_xlfn.NORM.S.INV(1-(B5/2)) -> 1.959963985
A23: p-Value | B23: =2*(1-_xlfn.NORM.S.DIST(ABS(B18),TRUE)) -> 0.000390389442
A24: =IF(B23<$B$5, "Reject the null hypothesis", "Do not reject the null hypothesis") -> Reject the null hypothesis
A26: Lower-Tail Test
A27: Lower Critical Value | B27: =_xlfn.NORM.S.INV(B5) -> -1.644853627
A28: p-Value | B28: =_xlfn.NORM.S.DIST(B18, TRUE) -> 0.000195194721
A29: =IF(B28 <$B$5, "Reject the null hypothesis", "Do not reject the null hypothesis") -> Reject the null hypothesis
A31: Upper-Tail Test
A32: Upper Critical Value | B32: =_xlfn.NORM.S.INV(1-B5) -> 1.644853627
A33: p-Value | B33: =1-_xlfn.NORM.S.DIST(B18, TRUE) -> 0.9998048053
A34: =IF(B33<$B$5, "Reject the null hypothesis", "Do not reject the null hypothesis") -> Do not reject the null hypothesis

Sheet nuTSZTPWS
A1: Z Test for Differences in Two Proportions
A3: Data | D3: Confidence Interval Estimate
A4: Hypothesized Difference | B4: 0 | D4: of the Difference Between Two Proportions
A5: Level of Significance | B5: 0.05
A6: Group 1 | D6: Data
A7: Number of Items of Interest | B7: 1 | D7: Confidence Level | E7: 0.95
A8: Sample Size | B8: 10
A9: Group 2 | D9: Intermediate Calculations
A10: Number of Items of Interest | B10: 2 | D10: Z Value | E10: =_xlfn.NORM.S.INV((1-E7)/2) -> -1.959963985
A11: Sample Size | B11: 20 | D11: Std. Error of the Diff. between two Proportions | E11: =SQRT((B14*(1-B14)/B8)+(B15*(1-B15)/B11)) -> 0.1161895004
D12: Interval Half Width | E12: =ABS(E10*E11) -> 0.2277272361
A13: Intermediate Calculations
A14: Group 1 Proportion | B14: =B7/B8 -> 0.1 | D14: Confidence Interval
A15: Group 2 Proportion | B15: =B10/B11 -> 0.1 | D15: Interval Lower Limit | E15: =B16-E12 -> -0.2277272361
A16: Difference in Two Proportions | B16: =B14-B15 -> 0 | D16: Interval Upper Limit | E16: =B16+E12 -> 0.2277272361
A17: Average Proportion | B17: =(B7+B10)/(B8+B11) -> 0.1
A18: Z Test Statistic | B18: =(B16-B4)/SQRT(B17*(1-B17)*(1/B8+1/B11)) -> 0
A20: Two-Tail Test
A21: Lower Critical Value | B21: =_xlfn.NORM.S.INV(B5/2) -> -1.959963985
A22: Upper Critical Value | B22: =_xlfn.NORM.S.INV(1-B5/2) -> 1.959963985
A23: p-Value | B23: =2*(1-_xlfn.NORM.S.DIST(ABS(B18),TRUE)) -> 1
A24: =IF(B23<$B$5, "Reject the null hypothesis", "Do not reject the null hypothesis") -> Do not reject the null hypothesis
A26: Lower-Tail Test
A27: Lower Critical Value | B27: =_xlfn.NORM.S.INV(B5) -> -1.644853627
A28: p-Value | B28: =_xlfn.NORM.S.DIST(B18,TRUE) -> 0.5
A29: =IF(B28<$B$5, "Reject the null hypothesis", "Do not reject the null hypothesis") -> Do not reject the null hypothesis
A31: Upper-Tail Test
A32: Upper Critical Value | B32: =_xlfn.NORM.S.INV(1-B5) -> 1.644853627
A33: p-Value | B33: =1-_xlfn.NORM.S.DIST(B18,TRUE ) -> 0.5
A34: =IF(B33<$B$5, "Reject the null hypothesis", "Do not reject the null hypothesis") -> Do not reject the null hypothesis

Sheet nuTSFTWS
A1: F Test for Differences in Two Variances
A3: Data
A4: Level of Significance | B4: 0.05
A5: Larger-Variance Sample
A6: Sample Size | B6: 10
A7: Sample Variance | B7: 1
A8: Smaller-Variance Sample
A9: Sample Size | B9: 10
A10: Sample Variance | B10: 1
A12: Intermediate Calculations
A13: F Test Statistic | B13: =B7/B10 -> 1
A14: Population 1 Sample Degrees of Freedom | B14: =B6-1 -> 9
A15: Population 2 Sample Degrees of Freedom | B15: =B9-1 -> 9
D16: Calculations Area
A17: Two-Tail Test | D17: F.DIST.RT value | E17: =_xlfn.F.DIST.RT(B13, B14, B15) -> 0.5
A18: Upper Critical Value | B18: =_xlfn.F.INV.RT(B4/2, B14, B15) -> 4.025994158
A19: p-Value | B19: =2*E17 -> 1
A20: =IF(B19<B4, "Reject the null hypothesis", "Do not reject the null hypothesis") -> Do not reject the null hypothesis
A22: Upper-Tail Test
A23: Upper Critical Value | B23: =_xlfn.F.INV.RT(B4, B14, B15) -> 3.178893104
A24: p-Value | B24: =E17 -> 0.5
A25: =IF(B24<B4, "Reject the null hypothesis", "Do not reject the null hypothesis") -> Do not reject the null hypothesis
A27: =IF(B7<B10, "Error: Review your entries for cells B6:B7 and B9:B10.", "") -> 
A28: =IF(B7<B10, "You entered the largest standard deviation as part of the Smaller-Variance Sample.", "") -> 

Sheet nuWilcoxonWS
A1: Wilcoxon Rank Sum Test for Differences in Two Medians
A3: Data
A4: Level of Significance | B4: 0.05
A6: Population 1 Sample
A7: Sample Size | B7: 1
A8: Sum of Ranks | B8: 1
A9: Population 2 Sample
A10: Sample Size | B10: 1
A11: Sum of Ranks | B11: 1
A13: Intermediate Calculations
A14: Total Sample Size n | B14: =B7+B10 -> 2
A15: T1 Test Statistic | B15: =IF(B7<=B10,B8,B11) -> 1
A16: T1 Mean | B16: =IF(B7<=B10,B7*(B14+1)/2,B10*(B14+1)/2) -> 1.5
A17: Standard Error of T1 | B17: =SQRT(B7*B10*(B14+1)/12) -> 0.5
A18: Z Test Statistic | B18: =(B15-B16)/B17 -> -1
A20: Two-Tail Test
A21: Lower Critical Value | B21: =_xlfn.NORM.S.INV(B4/2) -> -1.959963985
A22: Upper Critical Value | B22: =_xlfn.NORM.S.INV(1-B4/2) -> 1.959963985
A23: p-Value | B23: =2*(1-_xlfn.NORM.S.DIST(ABS(B18), TRUE)) -> 0.3173105079
A24: =IF(B23<$B$4, "Reject the null hypothesis", "Do not reject the null hypothesis") -> Do not reject the null hypothesis
A26: Lower-Tail Test
A27: Lower Critical Value | B27: =_xlfn.NORM.S.INV(B4) -> -1.644853627
A28: p-Value | B28: =_xlfn.NORM.S.DIST(B18, TRUE) -> 0.1586552539
A29: =IF(B28<$B$4, "Reject the null hypothesis", "Do not reject the null hypothesis") -> Do not reject the null hypothesis
A31: Upper-Tail Test
A32: Upper Critical Value | B32: =_xlfn.NORM.S.INV(1-B4) -> 1.644853627
A33: p-Value | B33: =1-_xlfn.NORM.S.DIST(B18, TRUE) -> 0.8413447461
A34: =IF(B33<$B$4, "Reject the null hypothesis", "Do not reject the null hypothesis") -> Do not reject the null hypothesis

Sheet nuZTPWS
A1: Z Test of Hypothesis for the Proportion
A3: Data
A4: Null Hypothesis p = | B4: 0.1
A5: Level of Significance | B5: 0.05
A6: Number of Items of Interest | B6: 11
A7: Sample Size | B7: 200
A9: Intermediate Calculations
A10: Sample Proportion | B10: =B6/B7 -> 0.055
A11: Standard Error | B11: =SQRT(B4*(1-B4)/B7) -> 0.02121320344
A12: Z Test Statistic | B12: =(B10-B4)/B11 -> -2.121320344
A14: Two-Tail Test
A15: Lower Critical Value | B15: =_xlfn.NORM.S.INV(B5/2) -> -1.959963985
A16: Upper Critical Value | B16: =_xlfn.NORM.S.INV(1-B5/2) -> 1.959963985
A17: p-Value | B17: =2*(1-_xlfn.NORM.S.DIST(ABS(B12), TRUE)) -> 0.03389485352
A18: =IF(B17<$B$5, "Reject the null hypothesis", "Do not reject the null hypothesis") -> Reject the null hypothesis
A20: Lower-Tail Test
A21: Lower Critical Value | B21: =_xlfn.NORM.S.INV(B5) -> -1.644853627
A22: p-Value | B22: =_xlfn.NORM.S.DIST(B12, TRUE) -> 0.01694742676
A23: =IF(B22<$B$5, "Reject the null hypothesis", "Do not reject the null hypothesis") -> Reject the null hypothesis
A25: Upper-Tail Test
A26: Upper Critical Value | B26: =_xlfn.NORM.S.INV(1-B5) -> 1.644853627
A27: p-Value | B27: =1-_xlfn.NORM.S.DIST(B12, TRUE) -> 0.9830525732
A28: =IF(B27<$B$5, "Reject the null hypothesis", "Do not reject the null hypothesis") -> Do not reject the null hypothesis

Sheet nuTTMeanWS
A1: t Test for the Hypothesis of the Mean
A3: Data
A4: Null Hypothesis m= | B4: 120
A5: Level of Significance | B5: 0.05
A6: Sample Size | B6: 2
A7: Sample Mean | B7: 1
A8: Sample Standard Deviation | B8: 1
A10: Intermediate Calculations
A11: Standard Error of the Mean | B11: =B8/SQRT(B6) -> 0.7071067812
A12: Degrees of Freedom | B12: =B6-1 -> 1
A13: t Test Statistic | B13: =(B7-B4)/B11 -> -168.2914139
A15: Two-Tail Test
A16: Lower Critical Value | B16: =-(_xlfn.T.INV.2T(B5, B12)) -> -12.70620474
A17: Upper Critical Value | B17: =_xlfn.T.INV.2T(B5, B12) -> 12.70620474
A18: p-Value | B18: =_xlfn.T.DIST.2T(ABS(B13), B12) -> 0.003782797144
A19: =IF(B18<$B$5, "Reject the null hypothesis", "Do not reject the null hypothesis") -> Reject the null hypothesis
D20: Calculations Area
A21: Lower-Tail Test | D21: For one-tailed tests:
A22: Lower Critical Value | B22: =-(_xlfn.T.INV.2T(2*B5, B12)) -> -6.313751515 | D22: T.DIST.RT value | E22: =_xlfn.T.DIST.RT(ABS(B13), B12) -> 0.001891398572
A23: p-Value | B23: =IF(B13<0, E22, E23) -> 0.001891398572 | D23: 1-T.DIST.RT value | E23: =1-E22 -> 0.9981086014
A24: =IF(B23<$B$5, "Reject the null hypothesis", "Do not reject the null hypothesis") -> Reject the null hypothesis
A26: Upper-Tail Test
A27: Upper Critical Value | B27: =(_xlfn.T.INV.2T(2*B5, B12)) -> 6.313751515
A28: p-Value | B28: =IF(B13<0, E23, E22) -> 0.9981086014
A29: =IF(B28<$B$5, "Reject the null hypothesis", "Do not reject the null hypothesis") -> Do not reject the null hypothesis

Sheet nuZTMeanWS
A1: Z Test of the Hypothesis for the Mean
A3: Data
A4: Null Hypothesis m= | B4: 1
A5: Level of Significance | B5: 0.05
A6: Population Standard Deviation | B6: 2
A7: Sample Size | B7: 10
A8: Sample Mean | B8: 1
A10: Intermediate Calculations
A11: Standard Error of the Mean | B11: =B6/SQRT(B7) -> 0.632455532
A12: Z Test Statistic | B12: =(B8-B4)/B11 -> 0
A14: Two-Tail Test
A15: Lower Critical Value | B15: =_xlfn.NORM.S.INV(B5/2) -> -1.959963985
A16: Upper Critical Value | B16: =_xlfn.NORM.S.INV(1-B5/2) -> 1.959963985
A17: p-Value | B17: =2*(1-_xlfn.NORM.S.DIST(ABS(B12), TRUE)) -> 1
A18: =IF(B17<$B$5, "Reject the null hypothesis", "Do not reject the null hypothesis") -> Do not reject the null hypothesis
A20: Lower-Tail Test
A21: Lower Critical Value | B21: =_xlfn.NORM.S.INV(B5) -> -1.644853627
A22: p-Value | B22: =_xlfn.NORM.S.DIST(B12, TRUE) -> 0.5
A23: =IF(B22<$B$5, "Reject the null hypothesis", "Do not reject the null hypothesis") -> Do not reject the null hypothesis
A25: Upper-Tail Test
A26: Upper Critical Value | B26: =_xlfn.NORM.S.INV(1-B5) -> 1.644853627
A27: p-Value | B27: =1-_xlfn.NORM.S.DIST(B12, TRUE) -> 0.5
A28: =IF(B27<$B$5, "Reject the null hypothesis", "Do not reject the null hypothesis") -> Do not reject the null hypothesis

Sheet nuCITDWS
A1: Confidence Interval Estimate for the Total Difference
A3: Data
A4: Population Size | B4: 5000
A5: Sample Size | B5: 100
A6: Confidence Level | B6: 0.95
A8: Intermediate Calculations
A9: Sum of Differences | B9: =SUM(Data!A:A) | D9: Calculations Area
A10: Average Difference in Sample | B10: =B9/B5 ->  | D10: For standard deviation of differences:
A11: Total Difference | B11: =B4*B10 ->  | D11: Number of Differences Not = 0 | E11: =COUNT(Data!A:A)
A12: Standard Deviation of Differences | B12: =SQRT(E16) ->  | D12: Number of Differences = 0 | E12: =B5-E11 -> 
A13: FPC Factor | B13: =SQRT((B4-B5)/(B4-1)) -> 0.9900485035 | D13: SS for Differences Not = 0 | E13: =SUM(Data!B:B)
A14: Standard Error of the Total Diff. | B14: =(B4*B12*B13)/SQRT(B5) ->  | D14: SS for Differences = 0 | E14: =E12*(-B10)^2 -> 
A15: Degrees of Freedom | B15: =B5-1 -> 99 | D15: Sum of Squares | E15: =E13+E14 -> 
A16: t Value | B16: =_xlfn.T.INV.2T(1-B6,B15) -> 1.984216952 | D16: Variance of Differences | E16: =E15/B15 -> 
A17: Interval Half Width | B17: =B16*B14 -> 
A19: Confidence Interval
A20: Interval Lower Limit | B20: =B11-B17 -> 
A21: Interval Upper Limit | B21: =B11+B17 -> 

Sheet nuCIPTWS
A1: Confidence Interval Estimate for the Population Total
A3: Data
A4: Population Size | B4: 5000
A5: Sample Mean | B5: 100
A6: Sample Size | B6: 100
A7: Sample Standard Deviation | B7: 20
A8: Confidence Level | B8: 0.95
A10: Intermediate Calculations
A11: Population Total | B11: =B4*B5 -> 500000
A12: FPC Factor | B12: =SQRT((B4-B6)/(B4-1)) -> 0.9900485035
A13: Standard Error of the Total | B13: =(B4*B7*B12)/SQRT(B6) -> 9900.485035
A14: Degrees of Freedom | B14: =B6-1 -> 99
A15: t Value | B15: =_xlfn.T.INV.2T(1-B8,B14) -> 1.984216952
A16: Interval Half Width | B16: =B15*B13 -> 19644.71023
A18: Confidence Interval
A19: Interval Lower Limit | B19: =B11-B16 -> 480355.2898
A20: Interval Upper Limit | B20: =B11+B16 -> 519644.7102

Sheet nuSSPWS
A1: Sample Size for Estimating the Proportion
A3: Data
A4: Estimate of True Proportion | B4: 0.15
A5: Sampling Error | B5: 0.07
A6: Confidence Level | B6: 0.95
A8: Intermediate Calculations
A9: Z Value | B9: =_xlfn.NORM.S.INV((1-B6)/2) -> -1.959963985
A10: Calculated Sample Size | B10: =(B9^2*B4*(1-B4))/B5^2 -> 99.95632646
A12: Result
A13: Sample Size Needed | B13: =ROUNDUP(B10, 0) -> 100
A16: Finite Populations
A17: Population Size | B17: 5000
A18: Calculated Sample Size | B18: =(B10*B17)/(B10+B17-1) -> 98.01645676
A19: Sample Size Needed | B19: =ROUNDUP(B18, 0) -> 99

Sheet nuSSMWS
A1: Sample Size for Estimating the Mean
A3: Data
A4: Population Standard Deviation | B4: 25
A5: Sampling Error | B5: 5
A6: Confidence Level | B6: 0.95
A8: Intemediate Calculations
A9: Z Value | B9: =_xlfn.NORM.S.INV((1-B6)/2) -> -1.959963985
A10: Calculated Sample Size | B10: =((B9*B4)/B5)^2 -> 96.03647052
A12: Result
A13: Sample Size Needed | B13: =ROUNDUP(B10, 0) -> 97
A16: Finite Populations
A17: Population Size | B17: 5000
A18: Sample Size with FPC | B18: =(B10*B17)/(B10+B17-1) -> 94.2451257
A19: Sample Size Needed | B19: =ROUNDUP(B18, 0) -> 95

Sheet nuCIPWS
A1: Confidence Interval Estimation for the Proportion
A3: Data
A4: Sample Size | B4: 100
A5: Number of Successes | B5: 10
A6: Confidence Level | B6: 0.95
A8: Intermediate Calculations
A9: Sample Proportion | B9: =B5/B4 -> 0.1
A10: Z Value | B10: =_xlfn.NORM.S.INV((1-B6)/2) -> -1.959963985
A11: Standard Error of the Proportion | B11: =SQRT(B9*(1-B9)/B4) -> 0.03
A12: Interval Half Width | B12: =ABS(B10*B11) -> 0.05879891954
A14: Confidence Interval
A15: Interval Lower Limit | B15: =B9-B12 -> 0.04120108046
A16: Interval Upper Limit | B16: =B9+B12 -> 0.1587989195
A19: Finite Populations
A20: Population Size | B20: 5000
A21: FPC Factor | B21: =SQRT((B20-B4)/(B20-1)) -> 0.9900485035
A22: Interval Half Width | B22: =B12*B21 -> 0.05821378229
A23: Interval Lower Limit | B23: =B9-B22 -> 0.04178621771
A24: Interval Upper Limit | B24: =B9+B22 -> 0.1582137823

Sheet nuCIMSUWS
A1: Confidence Interval Estimate for the Mean
A3: Data
A4: Sample Standard Deviation | B4: 20
A5: Sample Mean | B5: 10
A6: Sample Size | B6: 100
A7: Confidence Level | B7: 0.95
A9: Intermediate Calculations
A10: Standard Error of the Mean | B10: =B4/SQRT(B6) -> 2
A11: Degrees of Freedom | B11: =B6-1 -> 99
A12: t Value | B12: =_xlfn.T.INV.2T(1-B7, B11) -> 1.984216952
A13: Interval Half Width | B13: =B12*B10 -> 3.968433903
A15: Confidence Interval
A16: Interval Lower Limit | B16: =B5-B13 -> 6.031566097
A17: Interval Upper Limit | B17: =B5+B13 -> 13.9684339
A20: Finite Populations
A21: Population Size | B21: 5000
A22: FPC Factor | B22: =SQRT((B21-B6)/(B21-1)) -> 0.9900485035
A23: Interval Half Width | B23: =B13*B22 -> 3.928942047
A24: Interval Lower Limit | B24: =B5-B23 -> 6.071057953
A25: Interval Upper Limit | B25: =B5+B23 -> 13.92894205

Sheet nuCIMSKWS
A1: Confidence Interval Estimate for the Mean
A3: Data
A4: Population Standard Deviation | B4: 0.02
A5: Sample Mean | B5: 10
A6: Sample Size | B6: 100
A7: Confidence Level | B7: 0.95
A9: Intermediate Calculations
A10: Standard Error of the Mean | B10: =B4/SQRT(B6) -> 0.002
A11: Z Value | B11: =_xlfn.NORM.S.INV((1-B7)/2) -> -1.959963985
A12: Interval Half Width | B12: =_xlfn.CONFIDENCE.NORM(1-B7, B4, B6) -> 0.003919927969
A14: Confidence Interval
A15: Interval Lower Limit | B15: =B5-B12 -> 9.996080072
A16: Interval Upper Limit | B16: =B5+B12 -> 10.00391993
A19: Finite Populations
A20: Population Size | B20: 10000
A21: FPC Factor | B21: =SQRT((B20-B6)/(B20-1)) -> 0.9950371902
A22: Interval Half Width | B22: =B12*B21 -> 0.003900474112
A23: Interval Lower Limit | B23: =B5-B22 -> 9.996099526
A24: Interval Upper Limit | B24: =B5+B22 -> 10.00390047

Sheet nuExponentialWS
A1: Exponential Probability
A3: Data
A4: Mean | B4: 20
A5: X Value | B5: 0.1
A7: Results
A8: P(<=X) | B8: =_xlfn.EXPON.DIST(B5, B4, TRUE) -> 0.8646647168

Sheet nuNormalWS
A1: Normal Probabilities
A3: Common Data
A4: Mean | B4: 7
A5: Standard Deviation | B5: 2
A7: Probability for X <=
A8: X Value | B8: 7
A9: Z Value | B9: =STANDARDIZE(B8, B4, B5) -> 0
A10: ="P(X<="&B8&")" -> P(X<=7) | B10: =_xlfn.NORM.DIST(B8, B4, B5, TRUE) -> 0.5
A12: Probability for X >
A13: X Value | B13: 9
A14: Z Value | B14: =STANDARDIZE(B13, B4, B5) -> 1
A15: ="P(X>"&B13&")" -> P(X>9) | B15: =1-_xlfn.NORM.DIST(B13, B4, B5, TRUE) -> 0.1586552539
A17: ="Probability for X<"&B8&" or X >"&B13 -> Probability for X<7 or X >9
A18: ="P(X<"&B8&" or X >"&B13 & ")" -> P(X<7 or X >9) | B18: =B10+B15 -> 0.6586552539
A20: Probability for a Range
A21: From X Value | B21: 5
A22: To X Value | B22: 9
A23: ="Z Value for " &B21 -> Z Value for 5 | B23: =STANDARDIZE(B21, B4, B5) -> -1
A24: ="Z Value for " & B22 -> Z Value for 9 | B24: =STANDARDIZE(B22, B4, B5) -> 1
A25: ="P(X<="&B21&")" -> P(X<=5) | B25: =_xlfn.NORM.DIST(B21, B4, B5, TRUE) -> 0.1586552539
A26: ="P(X<="&B22&")" -> P(X<=9) | B26: =_xlfn.NORM.DIST(B22, B4, B5, TRUE) -> 0.8413447461
A27: ="P("&B21&"<=X<="&B22&")" -> P(5<=X<=9) | B27: =ABS(B26-B25) -> 0.6826894921
A29: Find X and Z Given Cum. Pctage.
A30: Cumulative Percentage | B30: 0.1
A31: Z Value | B31: =_xlfn.NORM.S.INV(B30) -> -1.281551566
A32: X Value | B32: =_xlfn.NORM.INV(B30, B4, B5) -> 4.436896869
A34: Find X Values Given a Percentage
A35: Percentage | B35: 0.95
A36: Z Value | B36: =_xlfn.NORM.S.INV((1 - B35)/2) -> -1.959963985
A37: Lower X Value | B37: =B4 + B36 * B5 -> 3.080072031
A38: Upper X Value | B38: =B4 - B36 * B5 -> 10.91992797

Sheet nuHypergeoWS
A1: Hypergeometric Probabilities
A3: Data
A4: Sample size | B4: 1
A5: No. of events of interest in population | B5: 1
A6: Population size | B6: 2
A8: Hypergeometric Probabilities Table
B9: X | C9: P(X)
B10: 0 | C10: =_xlfn.HYPGEOM.DIST(B10, $B$4, $B$5, $B$6, FALSE) -> 0.5
B11: 1 | C11: =_xlfn.HYPGEOM.DIST(B11, $B$4, $B$5, $B$6, FALSE) -> 0.5

Sheet nuPoissonWS
A1: POISSON.DIST Probabilities
A3: Data
A4: Mean/Expected number of events of interest: | E4: 3
A6: POISSON.DIST Probabilities Table
B7: X | C7: P(X) | D7: P(<=X) | E7: P(<X) | F7: P(>X) | G7: P(>=X)
B8: 0 | C8: =_xlfn.POISSON.DIST(B8, $E$4, FALSE) -> 0.04978706837 | D8: =_xlfn.POISSON.DIST(B8, $E$4, TRUE) -> 0.04978706837 | E8: =D8-C8 -> 0 | F8: =1-D8 -> 0.9502129316 | G8: =1-E8 -> 1
B9: 1 | C9: 0.1493612051 | D9: 0.1991482735 | E9: =D9-C9 -> 0.04978706837 | F9: =1-D9 -> 0.8008517265 | G9: 0.9502129316
B10: 2 | C10: 0.2240418077 | D10: 0.4231900811 | E10: 0.1991482735 | F10: 0.5768099189 | G10: 0.8008517265
B11: 3 | C11: 0.2240418077 | D11: 0.6472318888 | E11: 0.4231900811 | F11: 0.3527681112 | G11: 0.5768099189
B12: 4 | C12: 0.1680313557 | D12: 0.8152632445 | E12: 0.6472318888 | F12: 0.1847367555 | G12: 0.3527681112
B13: 5 | C13: 0.1008188134 | D13: 0.916082058 | E13: 0.8152632445 | F13: 0.08391794203 | G13: 0.1847367555
B14: 6 | C14: 0.05040940672 | D14: 0.9664914647 | E14: 0.916082058 | F14: 0.03350853531 | G14: 0.08391794203
B15: 7 | C15: 0.02160403145 | D15: 0.9880954961 | E15: 0.9664914647 | F15: 0.01190450386 | G15: 0.03350853531
B16: 8 | C16: 0.008101511795 | D16: 0.9961970079 | E16: 0.9880954961 | F16: 0.003802992062 | G16: 0.01190450386
B17: 9 | C17: 0.002700503932 | D17: 0.9988975119 | E17: 0.9961970079 | F17: 0.00110248813 | G17: 0.003802992062
B18: 10 | C18: 0.0008101511795 | D18: 0.999707663 | E18: 0.9988975119 | F18: 0.0002923369506 | G18: 0.00110248813
B19: 11 | C19: 0.0002209503217 | D19: 0.9999286134 | E19: 0.999707663 | F19: 7.138662897e-05 | G19: 0.0002923369506
B20: 12 | C20: 5.523758042e-05 | D20: 0.999983851 | E20: 0.9999286134 | F20: 1.614904856e-05 | G20: 7.138662897e-05
B21: 13 | C21: 1.274713394e-05 | D21: 0.9999965981 | E21: 0.999983851 | F21: 3.401914613e-06 | G21: 1.614904856e-05
B22: 14 | C22: 2.731528702e-06 | D22: 0.9999993296 | E22: 0.9999965981 | F22: 6.703859112e-07 | G22: 3.401914613e-06
B23: 15 | C23: 5.463057404e-07 | D23: 0.9999998759 | E23: 0.9999993296 | F23: 1.240801708e-07 | G23: 6.703859112e-07
B24: 16 | C24: 1.024323263e-07 | D24: 0.9999999784 | E24: =D24-C24 -> 0.9999998759 | F24: 2.164784452e-08 | G24: =1-E24 -> 1.240801708e-07
B25: 17 | C25: 1.807629288e-08 | D25: 0.9999999964 | E25: =D25-C25 -> 0.9999999784 | F25: =1-D25 -> 3.57155161e-09 | G25: =1-E25 -> 2.164784452e-08
B26: 18 | C26: 3.01271548e-09 | D26: 0.9999999994 | E26: =D26-C26 -> 0.9999999964 | F26: 5.588360885e-10 | G26: =1-E26 -> 3.57155161e-09
B27: 19 | C27: 4.756919179e-10 | D27: 0.9999999999 | E27: =D27-C27 -> 0.9999999994 | F27: 8.314415822e-11 | G27: =1-E27 -> 5.588360885e-10
B28: 20 | C28: 7.135378769e-11 | D28: 1 | E28: =D28-C28 -> 0.9999999999 | F28: 1.17904575e-11 | G28: =1-E28 -> 8.314426925e-11

Sheet nuBinomialWS
A1: Binomial Probabilities
A3: Data
A4: Sample size | B4: 4
A5: Probability of an event of interest | B5: 1
A7: Statistics
A8: Mean | B8: =B4*B5 -> 4
A9: Variance | B9: =B8*(1-B5) -> 0
A10: Standard deviation | B10: =SQRT(B9) -> 0
A12: Binomial Probabilities Table
B13: X | C13: P(X) | D13: P(<=X) | E13: P(<X) | F13: P(>X) | G13: P(>=X)
B14: 0 | C14: =_xlfn.BINOM.DIST(B14, $B$4, $B$5, FALSE) ->  | D14: =_xlfn.BINOM.DIST(B14, $B$4, $B$5, TRUE) -> 0 | E14: =D14-C14 ->  | F14: =1-D14 -> 1 | G14: =1-E14 -> 

Sheet Basic Probabilities
A1: Probabilities Calculations
A3: Sample Space | C3: Event B
C4: B1 | D4: B2 | E4: Totals
A5: Event A | B5: A1 | C5: 1 | D5: 1 | E5: =C5+D5 -> 2
B6: A2 | C6: 1 | D6: 1 | E6: =C6+D6 -> 2
B7: Totals | C7: =C5+C6 -> 2 | D7: =D5+D6 -> 2 | E7: =C7+D7 -> 4
A9: Simple Probabilities
A10: ="P("&B5&")" -> P(A1) | B10: =E5/E7 -> 0.5
A11: ="P("&B6&")" -> P(A2) | B11: =E6/E7 -> 0.5
A12: ="P("&C4&")" -> P(B1) | B12: =C7/E7 -> 0.5
A13: ="P("&D4&")" -> P(B2) | B13: =D7/E7 -> 0.5
A15: Joint Probabilities
A16: ="P("&B5&" and "&C4&")" -> P(A1 and B1) | B16: =C5/E7 -> 0.25
A17: ="P("&B5&" and "&D4&")" -> P(A1 and B2) | B17: =D5/E7 -> 0.25
A18: ="P("&B6&" and "&C4&")" -> P(A2 and B1) | B18: =C6/E7 -> 0.25
A19: ="P("&B6&" and "&D4&")" -> P(A2 and B2) | B19: =D6/E7 -> 0.25
A21: Addition Rule
A22: ="P("&B5&" or "&C4&")" -> P(A1 or B1) | B22: =B10+B12-B16 -> 0.75
A23: ="P("&B5&" or "&D4&")" -> P(A1 or B2) | B23: =B10+B13-B17 -> 0.75
A24: ="P("&B6&" or "&C4&")" -> P(A2 or B1) | B24: =B11+B12-B18 -> 0.75
A25: ="P("&B6&" or "&D4&")" -> P(A2 or B2) | B25: =B11+B13-B19 -> 0.75
